{"text_format":"1","workbook":"xlsx","n_sheets":4,"sheets":["SOLICITUD DE PAGO DE VIATICOS","informe de pagos trabajador","AcumGastos","Tablas"],"not_rendered":{"charts":0,"images":1,"macros":1,"external_links":0,"defined_names":3,"comments":2,"pivot_tables":0},"unopened":[],"bounds":{"document_bytes":16777216,"sheet_cells":100000,"rows_first":2000,"rows_last":500,"rows_between":2000,"halvings":0,"cell_chars":16384,"cell_head_chars":4096},"cells_cut":0,"cells_raw":0,"read":"whole","date_system":"1900"}

{"sheet":"SOLICITUD DE PAGO DE VIATICOS","index":0,"n_rows":30,"n_cols":8,"rows_kept":30,"cut":false,"hidden":false,"merged":[[29,7,29,9],[26,2,26,3],[26,5,26,6],[29,4,29,6],[21,2,21,4],[18,5,18,6],[21,5,21,6],[23,2,23,6],[19,2,19,4],[19,5,19,6],[20,2,20,4],[18,2,18,4],[15,2,15,3],[15,4,15,6],[15,7,15,9],[16,2,16,4],[20,5,20,6],[17,2,17,4],[14,2,14,3],[2,2,3,8],[4,2,4,5],[5,8,5,9],[7,3,7,5],[8,3,8,5],[9,3,9,5],[10,2,11,3],[12,2,12,3],[13,2,13,3],[6,8,6,9],[14,4,14,6],[6,3,6,5]]}
[]
[]
[null,null,"Solicitud de Viático"]
[]
[null,null,"Instrucciones: Complete la información solicitada, recuerde que los campos con ( *)  son obligatorios, llenar con mayusculas y seleccionar una opción en los campos con listas deplegables."]
[null,null,"NOMBRE COMPLETO DEL EMPLEADO*",null,null,null,null,"FECHA DE ELABORACIÓN"]
[null,null,"NÚMERO DE EMPLEADO*",null,null,null,null,"EJECUTIVO DE SERVICIO AL CLIENTE"]
[null,null,"DESTINODEL VIAJE *"]
[null,null,"MOTIVO DEL VIAJE"]
[null,null,"NOMBRE DEL JEFE INMEDIATO QUE AUTORIZA*"]
[null,null,"PERIODO DEL VIAJE (COMPROBACIÓN)*:",null,"DESDE*"]
[null,null,null,null,"HASTA*"]
[null,null,"ELEGIR SI EL VIAJE ES NACIONAL O EXTRANJERO?"]
[null,null,"DIAS DE VIAJE"]
[null,null,"RAZON SOCIAL DE DCH (PATRÓN)"]
[null,null,"TIPO DE PAGO*",null,"SELECCIONAR",null,null,"DEBERA ANEXAR CARTA RESPONSIVA DEL FONDO FIJO "]
[null,null,"CANTIDAD"]
[null,null,"NÚMERO DE CUENTA PARA EL DEPOSITO"]
[null,null,"FOLIO"]
[null,null,"CLIENTE"]
[null,null,"CENTRO DE COSTOS"]
[null,null,"ORDEN DE COMPRA (EN CASO DE APLICAR)"]
[null,null,"viaticos@dchkw.com.mx; facturacion@dchkw.com.mx; gastos@dchkw.com.mx"]
[]
[]
[]
[]
[]
[]
[null,null,null,null,"FO-GF-GF-002",null,null,"Fecha de vigencia: 08/10/2019"]

{"sheet":"informe de pagos trabajador","index":1,"n_rows":431,"n_cols":21,"rows_kept":431,"cut":false,"hidden":false,"merged":[[8,13,8,14],[8,15,8,18],[12,3,12,5],[11,6,11,7],[11,8,11,11],[9,6,9,7],[7,6,8,7],[10,6,10,7],[12,6,12,7],[8,9,8,11],[426,16,426,17],[9,9,9,10],[14,14,14,17],[215,14,215,17],[319,14,319,17],[215,8,215,10],[319,8,319,10],[10,8,10,11],[12,8,12,10],[14,8,14,10],[9,13,9,15],[426,2,426,4],[428,2,428,4],[429,2,429,4],[430,15,430,16],[14,11,14,13],[423,14,423,16],[428,14,428,18],[429,15,429,16],[422,15,422,16],[319,2,319,7],[214,15,214,16],[318,15,318,16],[421,14,422,14],[421,2,421,13],[427,12,427,17],[425,15,425,17],[424,2,424,4],[425,2,425,4],[10,3,10,5],[319,11,319,13],[215,2,215,7],[215,11,215,13],[11,13,11,15],[10,13,10,15],[213,15,213,16],[317,15,317,16],[421,15,421,16],[10,16,10,18],[11,16,11,18],[14,2,14,7],[424,15,424,17],[14,20,15,20],[215,20,216,20],[319,20,320,20],[4,2,5,9],[4,11,5,18],[9,3,9,5],[11,3,11,5],[7,3,7,5],[8,3,8,5],[6,2,6,11],[7,13,7,14],[7,15,7,18],[9,16,9,18],[6,13,6,14],[6,15,6,18],[7,9,7,11]]}
[]
[]
[]
[]
[null,null,"Reporte/comprobación de gastos ",null,null,null,null,null,null,null,null,{"$f":"IF(T422>0,\"FAVOR DE ENVIAR CON ESTE REPORTE LOS ARCHIVOS XML DE LOS COMPROBANTES, DE LO CONTRARIO SU SOLICITUD SERÁ NO DEDUCIBLE\",\" \")","v":" "}]
[]
[null,null,"Instrucciones: Complete la información solicitada, recuerde que los campos con ( *)  son obligatorios, llenar con mayusculas y seleccionar una opción en los campos con listas deplegables.",null,null,null,null,null,null,null,null,null,null,"FECHA DE ELABORACIÓN"]
[null,null,"NOMBRE COMPLETO DEL EMPLEADO*",null,null,null,"PERIODO DEL VIAJE (COMPROBACIÓN)*:",null,null,null,null,null,null,"TIPO DE COMPROBACIÓN *",null,"Seleccionar"]
[null,null,"NÚMERO DE EMPLEADO*",null,null,null,null,null,null,null,null,null,null,"CENTRO DE COSTOS"]
[null,null,"DESTINO DEL VIAJE *",null,null,null,"ELEGIR SI EL VIAJE ES NACIONAL O EXTRANJERO?",null,"NACIONAL",null,null,null,null,"CANTIDAD DEL VIÁTICO ANTICIPADO"]
[null,null,"MOTIVO DEL VIAJE",null,null,null,"RAZON SOCIAL DE DCH (PATRÓN)",null,null,null,null,null,null,"FOLIO"]
[null,null,"NOMBRE DEL JEFE INMEDIATO QUE AUTORIZA*",null,null,null,"CLIENTE ",null,null,null,null,null,null,"FECHA DEL ANTICIPO"]
[null,null,"NÚMERO DE CUENTA DEL EMPLEADO",null,null,null,"SOBRANTE DE ANTICIPO, COLOCAR CANTIDAD DEPOSITADA A FAVOR DE DCH"]
[]
[null,null,"HOSPEDAJE",null,null,null,null,null,"GASTOS EN MONEDA NACIONAL",null,null,"GASTOS EN MONEDA EXTRANJERA",null,null,"COMPROBANTE"]
[null,null,"FECHA DEL GASTO*","CONCEPTO*","R.F.C *","RAZÓN SOCIAL DE QUIEN EMITE FACTURA*","FORMA DE PAGO*","MONEDA*","M. Nacional M.N) *","IVA *","IMPUESTO SOBRE HOSPEDAJE","M. extranjera","TC *","PESOS","Factura y/o PDF *","XML *","EDO CTA *","TICKET ","Total de Gastos"]
[null,1,null,"HOSPEDAJE",null,null,"TARJETA","MONEDA NACIONAL",null,null,null,0,null,{"$f":"L17*M17","v":0},"SELECCIONAR","SELECCIONAR","SELECCIONAR","SELECCIONAR",{"$f":"I17+J17+N17+K17","v":0},{"$f":"IF(AND(I10=\"EXTRANJERO\",Q17=\"SI\"),1,IF(AND(E17>0,P17=\"Si\"),1,IF(OR(I17>0,N17>0),0,\" \")))","v":" "},{"$f":"IF(T17=1,\"DEDUCIBLE\",IF(T17=0,\"NO DEDUCIBLE\",\"\"))","v":""}]
[null,2,null,"SELECCIONAR",null,null,"SELECCIONAR","SELECCIONAR",0,0,0,0,0,0,"SELECCIONAR","SELECCIONAR","SELECCIONAR","SELECCIONAR",{"$f":"I18+J18+N18+K18","v":0},{"$f":"IF(AND(I10=\"EXTRANJERO\",Q18=\"SI\"),1,IF(AND(E18>0,P18=\"Si\"),1,IF(OR(I18>0,N18>0),0,\" \")))","v":" "},{"$f":"IF(T18=1,\"DEDUCIBLE\",IF(T18=0,\"NO DEDUCIBLE\",\"\"))","v":""}]
[null,3,null,"SELECCIONAR",null,null,"SELECCIONAR","SELECCIONAR",0,0,0,0,0,0,"SELECCIONAR","SELECCIONAR","SELECCIONAR","SELECCIONAR",0,{"$f":"IF(AND(I10=\"EXTRANJERO\",Q19=\"SI\"),1,IF(AND(E19>0,P19=\"Si\"),1,IF(OR(I19>0,N19>0),0,\" \")))","v":" "},""]
[null,4,null,"SELECCIONAR",null,null,"SELECCIONAR","SELECCIONAR",0,0,0,0,0,{"$f":"L20*M20","v":0},"SELECCIONAR","SELECCIONAR","SELECCIONAR","SELECCIONAR",0,{"$f":"IF(AND(I10=\"EXTRANJERO\",Q20=\"SI\"),1,IF(AND(E20>0,P20=\"Si\"),1,IF(OR(I20>0,N20>0),0,\" \")))","v":" "},""]
[null,5,null,null,null,null,null,null,null,null,null,null,null,0,null,null,null,null,0,{"$f":"IF(AND(I11=\"EXTRANJERO\",Q21=\"SI\"),1,IF(AND(E21>0,P21=\"Si\"),1,IF(OR(I21>0,N21>0),0,\" \")))","v":" "},""]
[null,6,null,null,null,null,null,null,null,null,null,null,null,0,null,null,null,null,0," ",""]
[null,7,null,null,null,null,null,null,null,null,null,null,null,0,null,null,null,null,0," ",""]
[null,8,null,null,null,null,null,null,null,null,null,null,null,0,null,null,null,null,0," ",""]
[null,9,null,null,null,null,null,null,null,null,null,null,null,0,null,null,null,null,0," ",""]
[null,10,null,null,null,null,null,null,null,null,null,null,null,0,null,null,null,null,0," ",""]
[null,11,null,null,null,null,null,null,null,null,null,null,null,0,null,null,null,null,0," ",""]
[null,12,null,null,null,null,null,null,null,null,null,null,null,0,null,null,null,null,0," ",""]
[null,13,null,null,null,null,null,null,null,null,null,null,null,0,null,null,null,null,0," ",""]
[null,14,null,null,null,null,null,null,null,null,null,null,null,0,null,null,null,null,0," ",""]
[null,15,null,null,null,null,null,null,null,null,null,null,null,0,null,null,null,null,0," ",""]
[null,16,null,null,null,null,null,null,null,null,null,null,null,0,null,null,null,null,0," ",""]
[null,17,null,null,null,null,null,null,null,null,null,null,null,0,null,null,null,null,0," ",""]
[null,18,null,null,null,null,null,null,null,null,null,null,null,0,null,null,null,null,0," ",""]
[null,19,null,null,null,null,null,null,null,null,null,null,null,0,null,null,null,null,0," ",""]
[null,20,null,null,null,null,null,null,null,null,null,null,null,0,null,null,null,null,0," ",""]
[null,21,null,null,null,null,null,null,null,null,null,null,null,0,null,null,null,null,0," ",""]
[null,22,null,null,null,null,null,null,null,null,null,null,null,0,null,null,null,null,0," ",""]
[null,23,null,null,null,null,null,null,null,null,null,null,null,0,null,null,null,null,0," ",""]
[null,24,null,null,null,null,null,null,null,null,null,null,null,0,null,null,null,null,0," ",""]
[null,25,null,null,null,null,null,null,null,null,null,null,null,0,null,null,null,null,0," ",""]
[null,26,null,null,null,null,null,null,null,null,null,null,null,0,null,null,null,null,0," ",""]
[null,27,null,null,null,null,null,null,null,null,null,null,null,0,null,null,null,null,0," ",""]
[null,28,null,null,null,null,null,null,null,null,null,null,null,0,null,null,null,null,0," ",""]
[null,29,null,null,null,null,null,null,null,null,null,null,null,0,null,null,null,null,0," ",""]
[null,30,null,null,null,null,null,null,null,null,null,null,null,0,null,null,null,null,0," ",""]
[null,31,null,null,null,null,null,null,null,null,null,null,null,0,null,null,null,null,0," ",""]
[null,32,null,null,null,null,null,null,null,null,null,null,null,0,null,null,null,null,0," ",""]
[null,33,null,null,null,null,null,null,null,null,null,null,null,0,null,null,null,null,0," ",""]
[null,34,null,null,null,null,null,null,null,null,null,null,null,0,null,null,null,null,0," ",""]
[null,35,null,null,null,null,null,null,null,null,null,null,null,0,null,null,null,null,0," ",""]
[null,36,null,null,null,null,null,null,null,null,null,null,null,0,null,null,null,null,0," ",""]
[null,37,null,null,null,null,null,null,null,null,null,null,null,0,null,null,null,null,0," ",""]
[null,38,null,null,null,null,null,null,null,null,null,null,null,0,null,null,null,null,0," ",""]
[null,39,null,null,null,null,null,null,null,null,null,null,null,0,null,null,null,null,0," ",""]
[null,40,null,null,null,null,null,null,null,null,null,null,null,0,null,null,null,null,0," ",""]
[null,41,null,null,null,null,null,null,null,null,null,null,null,0,null,null,null,null,0," ",""]
[null,42,null,null,null,null,null,null,null,null,null,null,null,0,null,null,null,null,0," ",""]
[null,43,null,null,null,null,null,null,null,null,null,null,null,0,null,null,null,null,0," ",""]
[null,44,null,null,null,null,null,null,null,null,null,null,null,0,null,null,null,null,0," ",""]
[null,45,null,null,null,null,null,null,null,null,null,null,null,0,null,null,null,null,0," ",""]
[null,46,null,null,null,null,null,null,null,null,null,null,null,0,null,null,null,null,0," ",""]
[null,47,null,null,null,null,null,null,null,null,null,null,null,0,null,null,null,null,0," ",""]
[null,48,null,null,null,null,null,null,null,null,null,null,null,0,null,null,null,null,0," ",""]
[null,49,null,null,null,null,null,null,null,null,null,null,null,0,null,null,null,null,0," ",""]
[null,50,null,null,null,null,null,null,null,null,null,null,null,0,null,null,null,null,0," ",""]
[null,51,null,null,null,null,null,null,null,null,null,null,null,0,null,null,null,null,0," ",""]
[null,52,null,null,null,null,null,null,null,null,null,null,null,0,null,null,null,null,0," ",""]
[null,53,null,null,null,null,null,null,null,null,null,null,null,0,null,null,null,null,0," ",""]
[null,54,null,null,null,null,null,null,null,null,null,null,null,0,null,null,null,null,0," ",""]
[null,55,null,null,null,null,null,null,null,null,null,null,null,0,null,null,null,null,0," ",""]
[null,56,null,null,null,null,null,null,null,null,null,null,null,0,null,null,null,null,0," ",""]
[null,57,null,null,null,null,null,null,null,null,null,null,null,0,null,null,null,null,0," ",""]
[null,58,null,null,null,null,null,null,null,null,null,null,null,0,null,null,null,null,0," ",""]
[null,59,null,null,null,null,null,null,null,null,null,null,null,0,null,null,null,null,0," ",""]
[null,60,null,null,null,null,null,null,null,null,null,null,null,0,null,null,null,null,0," ",""]
[null,61,null,null,null,null,null,null,null,null,null,null,null,0,null,null,null,null,0," ",""]
[null,62,null,null,null,null,null,null,null,null,null,null,null,0,null,null,null,null,0," ",""]
[null,63,null,null,null,null,null,null,null,null,null,null,null,0,null,null,null,null,0," ",""]
[null,64,null,null,null,null,null,null,null,null,null,null,null,0,null,null,null,null,0," ",""]
[null,65,null,null,null,null,null,null,null,null,null,null,null,0,null,null,null,null,0," ",""]
[null,66,null,null,null,null,null,null,null,null,null,null,null,0,null,null,null,null,{"$f":"I82+J82+N82+K82","v":0}," ",{"$f":"IF(T82=1,\"DEDUCIBLE\",IF(T82=0,\"NO DEDUCIBLE\",\"\"))","v":""}]
[null,67,null,null,null,null,null,null,null,null,null,null,null,0,null,null,null,null,0," ",""]
[null,68,null,null,null,null,null,null,null,null,null,null,null,{"$f":"L84*M84","v":0},null,null,null,null,0," ",""]
[null,69,null,null,null,null,null,null,null,null,null,null,null,0,null,null,null,null,0,{"$f":"IF(AND(I75=\"EXTRANJERO\",Q85=\"SI\"),1,IF(AND(E85>0,P85=\"Si\"),1,IF(OR(I85>0,N85>0),0,\" \")))","v":" "},""]
[null,70,null,null,null,null,null,null,null,null,null,null,null,0,null,null,null,null,0," ",""]
[null,71,null,null,null,null,null,null,null,null,null,null,null,0,null,null,null,null,0," ",""]
[null,72,null,null,null,null,null,null,null,null,null,null,null,0,null,null,null,null,0," ",""]
[null,73,null,null,null,null,null,null,null,null,null,null,null,0,null,null,null,null,0," ",""]
[null,74,null,null,null,null,null,null,null,null,null,null,null,0,null,null,null,null,0," ",""]
[null,75,null,null,null,null,null,null,null,null,null,null,null,0,null,null,null,null,0," ",""]
[null,76,null,null,null,null,null,null,null,null,null,null,null,0,null,null,null,null,0," ",""]
[null,77,null,null,null,null,null,null,null,null,null,null,null,0,null,null,null,null,0," ",""]
[null,78,null,null,null,null,null,null,null,null,null,null,null,0,null,null,null,null,0," ",""]
[null,79,null,null,null,null,null,null,null,null,null,null,null,0,null,null,null,null,0," ",""]
[null,80,null,null,null,null,null,null,null,null,null,null,null,0,null,null,null,null,0," ",""]
[null,81,null,null,null,null,null,null,null,null,null,null,null,0,null,null,null,null,0," ",""]
[null,82,null,null,null,null,null,null,null,null,null,null,null,0,null,null,null,null,0," ",""]
[null,83,null,null,null,null,null,null,null,null,null,null,null,0,null,null,null,null,0," ",""]
[null,84,null,null,null,null,null,null,null,null,null,null,null,0,null,null,null,null,0," ",""]
[null,85,null,null,null,null,null,null,null,null,null,null,null,0,null,null,null,null,0," ",""]
[null,86,null,null,null,null,null,null,null,null,null,null,null,0,null,null,null,null,0," ",""]
[null,87,null,null,null,null,null,null,null,null,null,null,null,0,null,null,null,null,0," ",""]
[null,88,null,null,null,null,null,null,null,null,null,null,null,0,null,null,null,null,0," ",""]
[null,89,null,null,null,null,null,null,null,null,null,null,null,0,null,null,null,null,0," ",""]
[null,90,null,null,null,null,null,null,null,null,null,null,null,0,null,null,null,null,0," ",""]
[null,91,null,null,null,null,null,null,null,null,null,null,null,0,null,null,null,null,0," ",""]
[null,92,null,null,null,null,null,null,null,null,null,null,null,0,null,null,null,null,0," ",""]
[null,93,null,null,null,null,null,null,null,null,null,null,null,0,null,null,null,null,0," ",""]
[null,94,null,null,null,null,null,null,null,null,null,null,null,0,null,null,null,null,0," ",""]
[null,95,null,null,null,null,"SELECCIONAR","MONEDA NACIONAL",null,null,null,null,null,0,"SI","SI",null,null,0," ",""]
[null,96,null,null,null,null,null,null,null,null,null,null,null,0,null,null,null,null,0," ",""]
[null,97,null,null,null,null,null,null,null,null,null,null,null,0,null,null,null,null,0," ",""]
[null,98,null,null,null,null,null,null,null,null,null,null,null,0,null,null,null,null,0," ",""]
[null,99,null,null,null,null,"SELECCIONAR",null,null,null,null,null,null,0,null,null,null,null,0," ",""]
[null,100,null,null,null,null,"SELECCIONAR",null,null,null,null,null,null,0,"SI","SI",null,null,0," ",""]
[null,101,null,null,null,null,"SELECCIONAR",null,null,null,null,null,null,0,null,null,null,null,0," ",""]
[null,102,null,"SELECCIONAR",null,null,"SELECCIONAR","SELECCIONAR",0,0,0,0,0,0,"SELECCIONAR","SELECCIONAR","SELECCIONAR","SELECCIONAR",0," ",""]
[null,{"$f":"B118+1","v":103},null,"SELECCIONAR",null,null,"SELECCIONAR","SELECCIONAR",0,0,0,0,0,{"$f":"L119*M119","v":0},"SELECCIONAR","SELECCIONAR","SELECCIONAR","SELECCIONAR",{"$f":"I119+J119+N119","v":0},{"$f":"IF(AND(I12=\"EXTRANJERO\",Q119=\"SI\"),1,IF(AND(E119>0,P119=\"Si\"),1,IF(OR(I119>0,N119>0),0,\" \")))","v":" "},{"$f":"IF(T119=1,\"DEDUCIBLE\",IF(T119=0,\"NO DEDUCIBLE\",\"\"))","v":""}]
[null,104,null,"SELECCIONAR",null,null,"SELECCIONAR","SELECCIONAR",0,0,0,0,0,0,"SELECCIONAR","SELECCIONAR","SELECCIONAR","SELECCIONAR",0," ",""]
[null,105,null,"SELECCIONAR",null,null,"SELECCIONAR","SELECCIONAR",0,0,0,0,0,0,"SELECCIONAR","SELECCIONAR","SELECCIONAR","SELECCIONAR",0," ",""]
[null,106,null,"SELECCIONAR",null,null,"SELECCIONAR","SELECCIONAR",0,0,0,0,0,0,"SELECCIONAR","SELECCIONAR","SELECCIONAR","SELECCIONAR",0," ",""]
[null,107,null,"SELECCIONAR",null,null,"SELECCIONAR","SELECCIONAR",0,0,0,0,0,0,"SELECCIONAR","SELECCIONAR","SELECCIONAR","SELECCIONAR",0," ",""]
[null,108,null,"SELECCIONAR",null,null,"SELECCIONAR","SELECCIONAR",0,0,0,0,0,0,"SELECCIONAR","SELECCIONAR","SELECCIONAR","SELECCIONAR",0," ",""]
[null,109,null,"SELECCIONAR",null,null,"SELECCIONAR","SELECCIONAR",0,0,0,0,0,0,"SELECCIONAR","SELECCIONAR","SELECCIONAR","SELECCIONAR",0," ",""]
[null,110,null,"SELECCIONAR",null,null,"SELECCIONAR","SELECCIONAR",0,0,0,0,0,0,"SELECCIONAR","SELECCIONAR","SELECCIONAR","SELECCIONAR",0," ",""]
[null,111,null,"SELECCIONAR",null,null,"SELECCIONAR","SELECCIONAR",0,0,0,0,0,0,"SELECCIONAR","SELECCIONAR","SELECCIONAR","SELECCIONAR",0," ",""]
[null,112,null,"SELECCIONAR",null,null,"SELECCIONAR","SELECCIONAR",0,0,0,0,0,0,"SELECCIONAR","SELECCIONAR","SELECCIONAR","SELECCIONAR",0,{"$f":"IF(AND(I118=\"EXTRANJERO\",Q128=\"SI\"),1,IF(AND(E128>0,P128=\"Si\"),1,IF(OR(I128>0,N128>0),0,\" \")))","v":" "},""]
[null,113,null,"SELECCIONAR",null,null,"SELECCIONAR","SELECCIONAR",0,0,0,0,0,0,"SELECCIONAR","SELECCIONAR","SELECCIONAR","SELECCIONAR",0," ",""]
[null,114,null,"SELECCIONAR",null,null,"SELECCIONAR","SELECCIONAR",0,0,0,0,0,0,"SELECCIONAR","SELECCIONAR","SELECCIONAR","SELECCIONAR",0," ",""]
[null,115,null,"SELECCIONAR",null,null,"SELECCIONAR","SELECCIONAR",0,0,0,0,0,0,"SELECCIONAR","SELECCIONAR","SELECCIONAR","SELECCIONAR",0," ",""]
[null,116,null,"SELECCIONAR",null,null,"SELECCIONAR","SELECCIONAR",0,0,0,0,0,0,"SELECCIONAR","SELECCIONAR","SELECCIONAR","SELECCIONAR",0," ",""]
[null,117,null,"SELECCIONAR",null,null,"SELECCIONAR","SELECCIONAR",0,0,0,0,0,0,"SELECCIONAR","SELECCIONAR","SELECCIONAR","SELECCIONAR",0," ",""]
[null,118,null,"SELECCIONAR",null,null,"SELECCIONAR","SELECCIONAR",0,0,0,0,0,0,"SELECCIONAR","SELECCIONAR","SELECCIONAR","SELECCIONAR",0," ",""]
[null,119,null,"SELECCIONAR",null,null,"SELECCIONAR","SELECCIONAR",0,0,0,0,0,0,"SELECCIONAR","SELECCIONAR","SELECCIONAR","SELECCIONAR",0," ",""]
[null,120,null,"SELECCIONAR",null,null,"SELECCIONAR","SELECCIONAR",0,0,0,0,0,0,"SELECCIONAR","SELECCIONAR","SELECCIONAR","SELECCIONAR",0," ",""]
[null,121,null,"SELECCIONAR",null,null,"SELECCIONAR","SELECCIONAR",0,0,0,0,0,0,"SELECCIONAR","SELECCIONAR","SELECCIONAR","SELECCIONAR",0," ",""]
[null,122,null,"SELECCIONAR",null,null,"SELECCIONAR","SELECCIONAR",0,0,0,0,0,0,"SELECCIONAR","SELECCIONAR","SELECCIONAR","SELECCIONAR",0," ",""]
[null,123,null,"SELECCIONAR",null,null,"SELECCIONAR","SELECCIONAR",0,0,0,0,0,0,"SELECCIONAR","SELECCIONAR","SELECCIONAR","SELECCIONAR",0," ",""]
[null,124,null,"SELECCIONAR",null,null,"SELECCIONAR","SELECCIONAR",0,0,0,0,0,0,"SELECCIONAR","SELECCIONAR","SELECCIONAR","SELECCIONAR",0," ",""]
[null,125,null,"SELECCIONAR",null,null,"SELECCIONAR","SELECCIONAR",0,0,0,0,0,0,"SELECCIONAR","SELECCIONAR","SELECCIONAR","SELECCIONAR",0," ",""]
[null,126,null,"SELECCIONAR",null,null,"SELECCIONAR","SELECCIONAR",0,0,0,0,0,0,"SELECCIONAR","SELECCIONAR","SELECCIONAR","SELECCIONAR",0," ",""]
[null,127,null,"SELECCIONAR",null,null,"SELECCIONAR","SELECCIONAR",0,0,0,0,0,0,"SELECCIONAR","SELECCIONAR","SELECCIONAR","SELECCIONAR",0," ",""]
[null,128,null,"SELECCIONAR",null,null,"SELECCIONAR","SELECCIONAR",0,0,0,0,0,0,"SELECCIONAR","SELECCIONAR","SELECCIONAR","SELECCIONAR",0," ",""]
[null,129,null,"SELECCIONAR",null,null,"SELECCIONAR","SELECCIONAR",0,0,0,0,0,0,"SELECCIONAR","SELECCIONAR","SELECCIONAR","SELECCIONAR",0," ",""]
[null,130,null,"SELECCIONAR",null,null,"SELECCIONAR","SELECCIONAR",0,0,0,0,0,0,"SELECCIONAR","SELECCIONAR","SELECCIONAR","SELECCIONAR",0," ",""]
[null,131,null,"SELECCIONAR",null,null,"SELECCIONAR","SELECCIONAR",0,0,0,0,0,0,"SELECCIONAR","SELECCIONAR","SELECCIONAR","SELECCIONAR",0," ",""]
[null,132,null,"SELECCIONAR",null,null,"SELECCIONAR","SELECCIONAR",0,0,0,0,0,0,"SELECCIONAR","SELECCIONAR","SELECCIONAR","SELECCIONAR",0," ",""]
[null,133,null,"SELECCIONAR",null,null,"SELECCIONAR","SELECCIONAR",0,0,0,0,0,0,"SELECCIONAR","SELECCIONAR","SELECCIONAR","SELECCIONAR",0," ",""]
[null,134,null,"SELECCIONAR",null,null,"SELECCIONAR","SELECCIONAR",0,0,0,0,0,0,"SELECCIONAR","SELECCIONAR","SELECCIONAR","SELECCIONAR",0," ",""]
[null,135,null,"SELECCIONAR",null,null,"SELECCIONAR","SELECCIONAR",0,0,0,0,0,0,"SELECCIONAR","SELECCIONAR","SELECCIONAR","SELECCIONAR",0," ",""]
[null,136,null,"SELECCIONAR",null,null,"SELECCIONAR","SELECCIONAR",0,0,0,0,0,0,"SELECCIONAR","SELECCIONAR","SELECCIONAR","SELECCIONAR",0," ",""]
[null,137,null,"SELECCIONAR",null,null,"SELECCIONAR","SELECCIONAR",0,0,0,0,0,0,"SELECCIONAR","SELECCIONAR","SELECCIONAR","SELECCIONAR",0," ",""]
[null,138,null,"SELECCIONAR",null,null,"SELECCIONAR","SELECCIONAR",0,0,0,0,0,0,"SELECCIONAR","SELECCIONAR","SELECCIONAR","SELECCIONAR",0," ",""]
[null,139,null,"SELECCIONAR",null,null,"SELECCIONAR","SELECCIONAR",0,0,0,0,0,0,"SELECCIONAR","SELECCIONAR","SELECCIONAR","SELECCIONAR",0," ",""]
[null,140,null,"SELECCIONAR",null,null,"SELECCIONAR","SELECCIONAR",0,0,0,0,0,0,"SELECCIONAR","SELECCIONAR","SELECCIONAR","SELECCIONAR",0," ",""]
[null,141,null,"SELECCIONAR",null,null,"SELECCIONAR","SELECCIONAR",0,0,0,0,0,0,"SELECCIONAR","SELECCIONAR","SELECCIONAR","SELECCIONAR",0," ",""]
[null,142,null,"SELECCIONAR",null,null,"SELECCIONAR","SELECCIONAR",0,0,0,0,0,0,"SELECCIONAR","SELECCIONAR","SELECCIONAR","SELECCIONAR",0," ",""]
[null,143,null,"SELECCIONAR",null,null,"SELECCIONAR","SELECCIONAR",0,0,0,0,0,0,"SELECCIONAR","SELECCIONAR","SELECCIONAR","SELECCIONAR",0," ",""]
[null,144,null,"SELECCIONAR",null,null,"SELECCIONAR","SELECCIONAR",0,0,0,0,0,0,"SELECCIONAR","SELECCIONAR","SELECCIONAR","SELECCIONAR",0," ",""]
[null,145,null,"SELECCIONAR",null,null,"SELECCIONAR","SELECCIONAR",0,0,0,0,0,0,"SELECCIONAR","SELECCIONAR","SELECCIONAR","SELECCIONAR",0," ",""]
[null,146,null,"SELECCIONAR",null,null,"SELECCIONAR","SELECCIONAR",0,0,0,0,0,0,"SELECCIONAR","SELECCIONAR","SELECCIONAR","SELECCIONAR",0," ",""]
[null,147,null,"SELECCIONAR",null,null,"SELECCIONAR","SELECCIONAR",0,0,0,0,0,0,"SELECCIONAR","SELECCIONAR","SELECCIONAR","SELECCIONAR",0," ",""]
[null,148,null,"SELECCIONAR",null,null,"SELECCIONAR","SELECCIONAR",0,0,0,0,0,0,"SELECCIONAR","SELECCIONAR","SELECCIONAR","SELECCIONAR",0," ",""]
[null,149,null,"SELECCIONAR",null,null,"SELECCIONAR","SELECCIONAR",0,0,0,0,0,0,"SELECCIONAR","SELECCIONAR","SELECCIONAR","SELECCIONAR",0," ",""]
[null,150,null,"SELECCIONAR",null,null,"SELECCIONAR","SELECCIONAR",0,0,0,0,0,0,"SELECCIONAR","SELECCIONAR","SELECCIONAR","SELECCIONAR",0," ",""]
[null,151,null,"SELECCIONAR",null,null,"SELECCIONAR","SELECCIONAR",0,0,0,0,0,0,"SELECCIONAR","SELECCIONAR","SELECCIONAR","SELECCIONAR",0," ",""]
[null,152,null,"SELECCIONAR",null,null,"SELECCIONAR","SELECCIONAR",0,0,0,0,0,0,"SELECCIONAR","SELECCIONAR","SELECCIONAR","SELECCIONAR",0," ",""]
[null,153,null,"SELECCIONAR",null,null,"SELECCIONAR","SELECCIONAR",0,0,0,0,0,0,"SELECCIONAR","SELECCIONAR","SELECCIONAR","SELECCIONAR",0," ",""]
[null,154,null,"SELECCIONAR",null,null,"SELECCIONAR","SELECCIONAR",0,0,0,0,0,0,"SELECCIONAR","SELECCIONAR","SELECCIONAR","SELECCIONAR",0," ",""]
[null,155,null,"SELECCIONAR",null,null,"SELECCIONAR","SELECCIONAR",0,0,0,0,0,0,"SELECCIONAR","SELECCIONAR","SELECCIONAR","SELECCIONAR",0," ",""]
[null,156,null,"SELECCIONAR",null,null,"SELECCIONAR","SELECCIONAR",0,0,0,0,0,0,"SELECCIONAR","SELECCIONAR","SELECCIONAR","SELECCIONAR",0," ",""]
[null,157,null,"SELECCIONAR",null,null,"SELECCIONAR","SELECCIONAR",0,0,0,0,0,0,"SELECCIONAR","SELECCIONAR","SELECCIONAR","SELECCIONAR",0," ",""]
[null,158,null,"SELECCIONAR",null,null,"SELECCIONAR","SELECCIONAR",0,0,0,0,0,0,"SELECCIONAR","SELECCIONAR","SELECCIONAR","SELECCIONAR",0," ",""]
[null,159,null,"SELECCIONAR",null,null,"SELECCIONAR","SELECCIONAR",0,0,0,0,0,0,"SELECCIONAR","SELECCIONAR","SELECCIONAR","SELECCIONAR",0," ",""]
[null,160,null,"SELECCIONAR",null,null,"SELECCIONAR","SELECCIONAR",0,0,0,0,0,0,"SELECCIONAR","SELECCIONAR","SELECCIONAR","SELECCIONAR",0," ",""]
[null,161,null,"SELECCIONAR",null,null,"SELECCIONAR","SELECCIONAR",0,0,0,0,0,0,"SELECCIONAR","SELECCIONAR","SELECCIONAR","SELECCIONAR",0," ",""]
[null,162,null,"SELECCIONAR",null,null,"SELECCIONAR","SELECCIONAR",0,0,0,0,0,0,"SELECCIONAR","SELECCIONAR","SELECCIONAR","SELECCIONAR",0," ",""]
[null,163,null,"SELECCIONAR",null,null,"SELECCIONAR","SELECCIONAR",0,0,0,0,0,0,"SELECCIONAR","SELECCIONAR","SELECCIONAR","SELECCIONAR",0," ",""]
[null,164,null,"SELECCIONAR",null,null,"SELECCIONAR","SELECCIONAR",0,0,0,0,0,0,"SELECCIONAR","SELECCIONAR","SELECCIONAR","SELECCIONAR",0," ",""]
[null,165,null,"SELECCIONAR",null,null,"SELECCIONAR","SELECCIONAR",0,0,0,0,0,0,"SELECCIONAR","SELECCIONAR","SELECCIONAR","SELECCIONAR",0," ",""]
[null,166,null,"SELECCIONAR",null,null,"SELECCIONAR","SELECCIONAR",0,0,0,0,0,{"$f":"L182*M182","v":0},"SELECCIONAR","SELECCIONAR","SELECCIONAR","SELECCIONAR",{"$f":"I182+J182+N182","v":0},{"$f":"IF(AND(I172=\"EXTRANJERO\",Q182=\"SI\"),1,IF(AND(E182>0,P182=\"Si\"),1,IF(OR(I182>0,N182>0),0,\" \")))","v":" "},{"$f":"IF(T182=1,\"DEDUCIBLE\",IF(T182=0,\"NO DEDUCIBLE\",\"\"))","v":""}]
[null,167,null,"SELECCIONAR",null,null,"SELECCIONAR","SELECCIONAR",0,0,0,0,0,0,"SELECCIONAR","SELECCIONAR","SELECCIONAR","SELECCIONAR",0," ",""]
[null,{"$f":"B183+1","v":168},null,"SELECCIONAR",null,null,"SELECCIONAR","SELECCIONAR",0,0,0,0,0,0,"SELECCIONAR","SELECCIONAR","SELECCIONAR","SELECCIONAR",0," ",""]
[null,169,null,"SELECCIONAR",null,null,"SELECCIONAR","SELECCIONAR",0,0,0,0,0,0,"SELECCIONAR","SELECCIONAR","SELECCIONAR","SELECCIONAR",0," ",""]
[null,170,null,"SELECCIONAR",null,null,"SELECCIONAR","SELECCIONAR",0,0,0,0,0,0,"SELECCIONAR","SELECCIONAR","SELECCIONAR","SELECCIONAR",0," ",""]
[null,171,null,"SELECCIONAR",null,null,"SELECCIONAR","SELECCIONAR",0,0,0,0,0,0,"SELECCIONAR","SELECCIONAR","SELECCIONAR","SELECCIONAR",0," ",""]
[null,172,null,"SELECCIONAR",null,null,"SELECCIONAR","SELECCIONAR",0,0,0,0,0,0,"SELECCIONAR","SELECCIONAR","SELECCIONAR","SELECCIONAR",0," ",""]
[null,173,null,"SELECCIONAR",null,null,"SELECCIONAR","SELECCIONAR",0,0,0,0,0,0,"SELECCIONAR","SELECCIONAR","SELECCIONAR","SELECCIONAR",0," ",""]
[null,174,null,"SELECCIONAR",null,null,"SELECCIONAR","SELECCIONAR",0,0,0,0,0,0,"SELECCIONAR","SELECCIONAR","SELECCIONAR","SELECCIONAR",0," ",""]
[null,175,null,"SELECCIONAR",null,null,"SELECCIONAR","SELECCIONAR",0,0,0,0,0,0,"SELECCIONAR","SELECCIONAR","SELECCIONAR","SELECCIONAR",0," ",""]
[null,176,null,"SELECCIONAR",null,null,"SELECCIONAR","SELECCIONAR",0,0,0,0,0,0,"SELECCIONAR","SELECCIONAR","SELECCIONAR","SELECCIONAR",0," ",""]
[null,177,null,"SELECCIONAR",null,null,"SELECCIONAR","SELECCIONAR",0,0,0,0,0,0,"SELECCIONAR","SELECCIONAR","SELECCIONAR","SELECCIONAR",0," ",""]
[null,178,null,"SELECCIONAR",null,null,"SELECCIONAR","SELECCIONAR",0,0,0,0,0,0,"SELECCIONAR","SELECCIONAR","SELECCIONAR","SELECCIONAR",0," ",""]
[null,179,null,"SELECCIONAR",null,null,"SELECCIONAR","SELECCIONAR",0,0,0,0,0,0,"SELECCIONAR","SELECCIONAR","SELECCIONAR","SELECCIONAR",0," ",""]
[null,180,null,"SELECCIONAR",null,null,"SELECCIONAR","SELECCIONAR",0,0,0,0,0,0,"SELECCIONAR","SELECCIONAR","SELECCIONAR","SELECCIONAR",0," ",""]
[null,181,null,"SELECCIONAR",null,null,"SELECCIONAR","SELECCIONAR",0,0,0,0,0,0,"SELECCIONAR","SELECCIONAR","SELECCIONAR","SELECCIONAR",0," ",""]
[null,182,null,"SELECCIONAR",null,null,"SELECCIONAR","SELECCIONAR",0,0,0,0,0,0,"SELECCIONAR","SELECCIONAR","SELECCIONAR","SELECCIONAR",0," ",""]
[null,183,null,"SELECCIONAR",null,null,"SELECCIONAR","SELECCIONAR",0,0,0,0,0,0,"SELECCIONAR","SELECCIONAR","SELECCIONAR","SELECCIONAR",0," ",""]
[null,184,null,"SELECCIONAR",null,null,"SELECCIONAR","SELECCIONAR",0,0,0,0,0,0,"SELECCIONAR","SELECCIONAR","SELECCIONAR","SELECCIONAR",0," ",""]
[null,185,null,"SELECCIONAR",null,null,"SELECCIONAR","SELECCIONAR",0,0,0,0,0,0,"SELECCIONAR","SELECCIONAR","SELECCIONAR","SELECCIONAR",0," ",""]
[null,186,null,"SELECCIONAR",null,null,"SELECCIONAR","SELECCIONAR",0,0,0,0,0,0,"SELECCIONAR","SELECCIONAR","SELECCIONAR","SELECCIONAR",0," ",""]
[null,187,null,"SELECCIONAR",null,null,"SELECCIONAR","SELECCIONAR",0,0,0,0,0,0,"SELECCIONAR","SELECCIONAR","SELECCIONAR","SELECCIONAR",0," ",""]
[null,188,null,"SELECCIONAR",null,null,"SELECCIONAR","SELECCIONAR",0,0,0,0,0,0,"SELECCIONAR","SELECCIONAR","SELECCIONAR","SELECCIONAR",0," ",""]
[null,189,null,"SELECCIONAR",null,null,"SELECCIONAR","SELECCIONAR",0,0,0,0,0,0,"SELECCIONAR","SELECCIONAR","SELECCIONAR","SELECCIONAR",0," ",""]
[null,190,null,"SELECCIONAR",null,null,"SELECCIONAR","SELECCIONAR",0,0,0,0,0,0,"SELECCIONAR","SELECCIONAR","SELECCIONAR","SELECCIONAR",0," ",""]
[null,191,null,"SELECCIONAR",null,null,"SELECCIONAR","SELECCIONAR",0,0,0,0,0,0,"SELECCIONAR","SELECCIONAR","SELECCIONAR","SELECCIONAR",0," ",""]
[null,192,null,"SELECCIONAR",null,null,"SELECCIONAR","SELECCIONAR",0,0,0,0,0,0,"SELECCIONAR","SELECCIONAR","SELECCIONAR","SELECCIONAR",0," ",""]
[null,193,null,"SELECCIONAR",null,null,"SELECCIONAR","SELECCIONAR",0,0,0,0,0,0,"SELECCIONAR","SELECCIONAR","SELECCIONAR","SELECCIONAR",0," ",""]
[null,194,null,"SELECCIONAR",null,null,"SELECCIONAR","SELECCIONAR",0,0,0,0,0,0,"SELECCIONAR","SELECCIONAR","SELECCIONAR","SELECCIONAR",0," ",""]
[null,195,null,"SELECCIONAR",null,null,"SELECCIONAR","SELECCIONAR",0,0,0,0,0,0,"SELECCIONAR","SELECCIONAR","SELECCIONAR","SELECCIONAR",0," ",""]
[null,196,null,"SELECCIONAR",null,null,"SELECCIONAR","SELECCIONAR",0,0,0,0,0,0,"SELECCIONAR","SELECCIONAR","SELECCIONAR","SELECCIONAR",0," ",""]
[null,197,null,"SELECCIONAR",null,null,"SELECCIONAR","SELECCIONAR",0,0,0,0,0,0,"SELECCIONAR","SELECCIONAR","SELECCIONAR","SELECCIONAR",0," ",""]
[null,null,null,null,null,null,null,null,null,null,null,null,null,null,null,"Total de Gastos DEDUCIBLES",null,null,{"$f":"SUMIF(U17:U213,\"DEDUCIBLE\",S17:S213)","v":0},{"$f":"SUMIF(T17:T213,1,T17:T213)","v":0},{"$f":"COUNTIF(U17:U213,\"NO DEDUCIBLE\")","v":0}]
[null,null,null,null,null,null,null,null,null,null,null,null,null,null,null,"Total de Gastos NO DEDUCIBLES",null,null,{"$f":"SUMIF(U17:U213,\"NO DEDUCIBLE\",S17:S213)","v":0}]
[null,null,"TRANSPORTE",null,null,null,null,null,"GASTOS EN MONEDA NACIONAL",null,null,"GASTOS EN MONEDA EXTRANJERA",null,null,"COMPROBANTE"]
[null,null,"FECHA DEL GASTO*","CONCEPTO*","R.F.C *","RAZÓN SOCIAL DE QUIEN EMITE FACTURA*","FORMA DE PAGO*","MONEDA*","M. Nacional M.N) *","IVA *","Otros impuestos","M. extranjera","TC *","PESOS","Factura y/o PDF *","XML *","EDO CTA *","TICKET ","Total de Gastos"]
[null,1,null,"SELECCIONAR",null,null,"SELECCIONAR","SELECCIONAR",0,0,0,0,0,0,"SELECCIONAR","SELECCIONAR","SELECCIONAR","SELECCIONAR",{"$f":"I218+J218+N218","v":0},{"$f":"IF(AND(I10=\"EXTRANJERO\",Q218=\"SI\"),1,IF(AND(E218>0,P218=\"Si\"),1,IF(OR(I218>0,N218>0),0,\" \")))","v":" "},{"$f":"IF(T218=1,\"DEDUCIBLE\",IF(T218=0,\"NO DEDUCIBLE\",\"\"))","v":""}]
[null,{"$f":"B218+1","v":2},null,"SELECCIONAR",null,null,"SELECCIONAR","SELECCIONAR",0,0,0,0,0,0,"SELECCIONAR","SELECCIONAR","SELECCIONAR","SELECCIONAR",0,{"$f":"IF(AND(I10=\"EXTRANJERO\",Q219=\"SI\"),1,IF(AND(E219>0,P219=\"Si\"),1,IF(OR(I219>0,N219>0),0,\" \")))","v":" "},""]
[null,{"$f":"B219+1","v":3},null,"SELECCIONAR",null,null,"SELECCIONAR","SELECCIONAR",0,0,0,0,0,0,"SELECCIONAR","SELECCIONAR","SELECCIONAR","SELECCIONAR",0,{"$f":"IF(AND(I10=\"EXTRANJERO\",Q220=\"SI\"),1,IF(AND(E220>0,P220=\"Si\"),1,IF(OR(I220>0,N220>0),0,\" \")))","v":" "},""]
[null,4,null,"SELECCIONAR",null,null,"SELECCIONAR","SELECCIONAR",0,0,0,0,0,0,"SELECCIONAR","SELECCIONAR","SELECCIONAR","SELECCIONAR",0,{"$f":"IF(AND(I10=\"EXTRANJERO\",Q221=\"SI\"),1,IF(AND(E221>0,P221=\"Si\"),1,IF(OR(I221>0,N221>0),0,\" \")))","v":" "},""]
[null,5,null,"SELECCIONAR",null,null,"SELECCIONAR","SELECCIONAR",0,0,0,0,0,0,"SELECCIONAR","SELECCIONAR","SELECCIONAR","SELECCIONAR",0,{"$f":"IF(AND(I10=\"EXTRANJERO\",Q222=\"SI\"),1,IF(AND(E222>0,P222=\"Si\"),1,IF(OR(I222>0,N222>0),0,\" \")))","v":" "},""]
[null,6,null,"SELECCIONAR",null,null,"SELECCIONAR","SELECCIONAR",0,0,0,0,0,0,"SELECCIONAR","SELECCIONAR","SELECCIONAR","SELECCIONAR",0,{"$f":"IF(AND(I10=\"EXTRANJERO\",Q223=\"SI\"),1,IF(AND(E223>0,P223=\"Si\"),1,IF(OR(I223>0,N223>0),0,\" \")))","v":" "},""]
[null,7,null,"SELECCIONAR",null,null,"SELECCIONAR","SELECCIONAR",0,0,0,0,0,0,"SELECCIONAR","SELECCIONAR","SELECCIONAR","SELECCIONAR",0,{"$f":"IF(AND(I10=\"EXTRANJERO\",Q224=\"SI\"),1,IF(AND(E224>0,P224=\"Si\"),1,IF(OR(I224>0,N224>0),0,\" \")))","v":" "},""]
[null,8,null,"SELECCIONAR",null,null,"SELECCIONAR","SELECCIONAR",0,0,0,0,0,0,"SELECCIONAR","SELECCIONAR","SELECCIONAR","SELECCIONAR",0,{"$f":"IF(AND(I10=\"EXTRANJERO\",Q225=\"SI\"),1,IF(AND(E225>0,P225=\"Si\"),1,IF(OR(I225>0,N225>0),0,\" \")))","v":" "},""]
[null,9,null,"SELECCIONAR",null,null,"SELECCIONAR","SELECCIONAR",0,0,0,0,0,0,"SELECCIONAR","SELECCIONAR","SELECCIONAR","SELECCIONAR",0,{"$f":"IF(AND(I10=\"EXTRANJERO\",Q226=\"SI\"),1,IF(AND(E226>0,P226=\"Si\"),1,IF(OR(I226>0,N226>0),0,\" \")))","v":" "},""]
[null,10,null,"SELECCIONAR",null,null,"SELECCIONAR","SELECCIONAR",0,0,0,0,0,0,"SELECCIONAR","SELECCIONAR","SELECCIONAR","SELECCIONAR",0,{"$f":"IF(AND(I10=\"EXTRANJERO\",Q227=\"SI\"),1,IF(AND(E227>0,P227=\"Si\"),1,IF(OR(I227>0,N227>0),0,\" \")))","v":" "},""]
[null,11,null,"SELECCIONAR",null,null,"SELECCIONAR","SELECCIONAR",0,0,0,0,0,0,"SELECCIONAR","SELECCIONAR","SELECCIONAR","SELECCIONAR",0,{"$f":"IF(AND(I10=\"EXTRANJERO\",Q228=\"SI\"),1,IF(AND(E228>0,P228=\"Si\"),1,IF(OR(I228>0,N228>0),0,\" \")))","v":" "},""]
[null,12,null,"SELECCIONAR",null,null,"SELECCIONAR","SELECCIONAR",0,0,0,0,0,0,"SELECCIONAR","SELECCIONAR","SELECCIONAR","SELECCIONAR",0,{"$f":"IF(AND(I10=\"EXTRANJERO\",Q229=\"SI\"),1,IF(AND(E229>0,P229=\"Si\"),1,IF(OR(I229>0,N229>0),0,\" \")))","v":" "},""]
[null,13,null,"SELECCIONAR",null,null,"SELECCIONAR","SELECCIONAR",0,0,0,0,0,0,"SELECCIONAR","SELECCIONAR","SELECCIONAR","SELECCIONAR",0,{"$f":"IF(AND(I10=\"EXTRANJERO\",Q230=\"SI\"),1,IF(AND(E230>0,P230=\"Si\"),1,IF(OR(I230>0,N230>0),0,\" \")))","v":" "},""]
[null,14,null,"SELECCIONAR",null,null,"SELECCIONAR","SELECCIONAR",0,0,0,0,0,{"$f":"L231*M231","v":0},"SELECCIONAR","SELECCIONAR","SELECCIONAR","SELECCIONAR",{"$f":"I231+J231+N231","v":0}," ",{"$f":"IF(T231=1,\"DEDUCIBLE\",IF(T231=0,\"NO DEDUCIBLE\",\"\"))","v":""}]
[null,15,null,"SELECCIONAR",null,null,"SELECCIONAR","SELECCIONAR",0,0,0,0,0,0,"SELECCIONAR","SELECCIONAR","SELECCIONAR","SELECCIONAR",0," ",""]
[null,16,null,"SELECCIONAR",null,null,"SELECCIONAR","SELECCIONAR",0,0,0,0,0,0,"SELECCIONAR","SELECCIONAR","SELECCIONAR","SELECCIONAR",0," ",""]
[null,17,null,"SELECCIONAR",null,null,"SELECCIONAR","SELECCIONAR",0,0,0,0,0,0,"SELECCIONAR","SELECCIONAR","SELECCIONAR","SELECCIONAR",0," ",""]
[null,18,null,"SELECCIONAR",null,null,"SELECCIONAR","SELECCIONAR",0,0,0,0,0,0,"SELECCIONAR","SELECCIONAR","SELECCIONAR","SELECCIONAR",0," ",""]
[null,19,null,"SELECCIONAR",null,null,"SELECCIONAR","SELECCIONAR",0,0,0,0,0,0,"SELECCIONAR","SELECCIONAR","SELECCIONAR","SELECCIONAR",0," ",""]
[null,20,null,"SELECCIONAR",null,null,"SELECCIONAR","SELECCIONAR",0,0,0,0,0,0,"SELECCIONAR","SELECCIONAR","SELECCIONAR","SELECCIONAR",0," ",""]
[null,21,null,"SELECCIONAR",null,null,"SELECCIONAR","SELECCIONAR",0,0,0,0,0,0,"SELECCIONAR","SELECCIONAR","SELECCIONAR","SELECCIONAR",0," ",""]
[null,22,null,"SELECCIONAR",null,null,"SELECCIONAR","SELECCIONAR",0,0,0,0,0,0,"SELECCIONAR","SELECCIONAR","SELECCIONAR","SELECCIONAR",0," ",""]
[null,23,null,"SELECCIONAR",null,null,"SELECCIONAR","SELECCIONAR",0,0,0,0,0,0,"SELECCIONAR","SELECCIONAR","SELECCIONAR","SELECCIONAR",0," ",""]
[null,24,null,"SELECCIONAR",null,null,"SELECCIONAR","SELECCIONAR",0,0,0,0,0,0,"SELECCIONAR","SELECCIONAR","SELECCIONAR","SELECCIONAR",0,{"$f":"IF(AND(I118=\"EXTRANJERO\",Q241=\"SI\"),1,IF(AND(E241>0,P241=\"Si\"),1,IF(OR(I241>0,N241>0),0,\" \")))","v":" "},""]
[null,25,null,"SELECCIONAR",null,null,"SELECCIONAR","SELECCIONAR",0,0,0,0,0,0,"SELECCIONAR","SELECCIONAR","SELECCIONAR","SELECCIONAR",0," ",""]
[null,26,null,"SELECCIONAR",null,null,"SELECCIONAR","SELECCIONAR",0,0,0,0,0,0,"SELECCIONAR","SELECCIONAR","SELECCIONAR","SELECCIONAR",0," ",""]
[null,27,null,"SELECCIONAR",null,null,"SELECCIONAR","SELECCIONAR",0,0,0,0,0,0,"SELECCIONAR","SELECCIONAR","SELECCIONAR","SELECCIONAR",0," ",""]
[null,28,null,"SELECCIONAR",null,null,"SELECCIONAR","SELECCIONAR",0,0,0,0,0,0,"SELECCIONAR","SELECCIONAR","SELECCIONAR","SELECCIONAR",0," ",""]
[null,29,null,"SELECCIONAR",null,null,"SELECCIONAR","SELECCIONAR",0,0,0,0,0,0,"SELECCIONAR","SELECCIONAR","SELECCIONAR","SELECCIONAR",0," ",""]
[null,30,null,"SELECCIONAR",null,null,"SELECCIONAR","SELECCIONAR",0,0,0,0,0,0,"SELECCIONAR","SELECCIONAR","SELECCIONAR","SELECCIONAR",0," ",""]
[null,31,null,"SELECCIONAR",null,null,"SELECCIONAR","SELECCIONAR",0,0,0,0,0,0,"SELECCIONAR","SELECCIONAR","SELECCIONAR","SELECCIONAR",0," ",""]
[null,32,null,"SELECCIONAR",null,null,"SELECCIONAR","SELECCIONAR",0,0,0,0,0,0,"SELECCIONAR","SELECCIONAR","SELECCIONAR","SELECCIONAR",0," ",""]
[null,33,null,"SELECCIONAR",null,null,"SELECCIONAR","SELECCIONAR",0,0,0,0,0,0,"SELECCIONAR","SELECCIONAR","SELECCIONAR","SELECCIONAR",0," ",""]
[null,34,null,"SELECCIONAR",null,null,"SELECCIONAR","SELECCIONAR",0,0,0,0,0,0,"SELECCIONAR","SELECCIONAR","SELECCIONAR","SELECCIONAR",0," ",""]
[null,35,null,"SELECCIONAR",null,null,"SELECCIONAR","SELECCIONAR",0,0,0,0,0,0,"SELECCIONAR","SELECCIONAR","SELECCIONAR","SELECCIONAR",0," ",""]
[null,36,null,"SELECCIONAR",null,null,"SELECCIONAR","SELECCIONAR",0,0,0,0,0,0,"SELECCIONAR","SELECCIONAR","SELECCIONAR","SELECCIONAR",0," ",""]
[null,37,null,"SELECCIONAR",null,null,"SELECCIONAR","SELECCIONAR",0,0,0,0,0,0,"SELECCIONAR","SELECCIONAR","SELECCIONAR","SELECCIONAR",0," ",""]
[null,38,null,"SELECCIONAR",null,null,"SELECCIONAR","SELECCIONAR",0,0,0,0,0,0,"SELECCIONAR","SELECCIONAR","SELECCIONAR","SELECCIONAR",0," ",""]
[null,39,null,"SELECCIONAR",null,null,"SELECCIONAR","SELECCIONAR",0,0,0,0,0,0,"SELECCIONAR","SELECCIONAR","SELECCIONAR","SELECCIONAR",0," ",""]
[null,40,null,"SELECCIONAR",null,null,"SELECCIONAR","SELECCIONAR",0,0,0,0,0,0,"SELECCIONAR","SELECCIONAR","SELECCIONAR","SELECCIONAR",0," ",""]
[null,41,null,"SELECCIONAR",null,null,"SELECCIONAR","SELECCIONAR",0,0,0,0,0,0,"SELECCIONAR","SELECCIONAR","SELECCIONAR","SELECCIONAR",0," ",""]
[null,42,null,"SELECCIONAR",null,null,"SELECCIONAR","SELECCIONAR",0,0,0,0,0,0,"SELECCIONAR","SELECCIONAR","SELECCIONAR","SELECCIONAR",0," ",""]
[null,43,null,"SELECCIONAR",null,null,"SELECCIONAR","SELECCIONAR",0,0,0,0,0,0,"SELECCIONAR","SELECCIONAR","SELECCIONAR","SELECCIONAR",0," ",""]
[null,44,null,"SELECCIONAR",null,null,"SELECCIONAR","SELECCIONAR",0,0,0,0,0,0,"SELECCIONAR","SELECCIONAR","SELECCIONAR","SELECCIONAR",0," ",""]
[null,45,null,"SELECCIONAR",null,null,"SELECCIONAR","SELECCIONAR",0,0,0,0,0,0,"SELECCIONAR","SELECCIONAR","SELECCIONAR","SELECCIONAR",0," ",""]
[null,46,null,"SELECCIONAR",null,null,"SELECCIONAR","SELECCIONAR",0,0,0,0,0,0,"SELECCIONAR","SELECCIONAR","SELECCIONAR","SELECCIONAR",0," ",""]
[null,47,null,"SELECCIONAR",null,null,"SELECCIONAR","SELECCIONAR",0,0,0,0,0,0,"SELECCIONAR","SELECCIONAR","SELECCIONAR","SELECCIONAR",0," ",""]
[null,48,null,"SELECCIONAR",null,null,"SELECCIONAR","SELECCIONAR",0,0,0,0,0,0,"SELECCIONAR","SELECCIONAR","SELECCIONAR","SELECCIONAR",0," ",""]
[null,49,null,"SELECCIONAR",null,null,"SELECCIONAR","SELECCIONAR",0,0,0,0,0,0,"SELECCIONAR","SELECCIONAR","SELECCIONAR","SELECCIONAR",0," ",""]
[null,50,null,"SELECCIONAR",null,null,"SELECCIONAR","SELECCIONAR",0,0,0,0,0,0,"SELECCIONAR","SELECCIONAR","SELECCIONAR","SELECCIONAR",0," ",""]
[null,51,null,"SELECCIONAR",null,null,"SELECCIONAR","SELECCIONAR",0,0,0,0,0,0,"SELECCIONAR","SELECCIONAR","SELECCIONAR","SELECCIONAR",0," ",""]
[null,52,null,"SELECCIONAR",null,null,"SELECCIONAR","SELECCIONAR",0,0,0,0,0,0,"SELECCIONAR","SELECCIONAR","SELECCIONAR","SELECCIONAR",0," ",""]
[null,53,null,"SELECCIONAR",null,null,"SELECCIONAR","SELECCIONAR",0,0,0,0,0,0,"SELECCIONAR","SELECCIONAR","SELECCIONAR","SELECCIONAR",0," ",""]
[null,54,null,"SELECCIONAR",null,null,"SELECCIONAR","SELECCIONAR",0,0,0,0,0,0,"SELECCIONAR","SELECCIONAR","SELECCIONAR","SELECCIONAR",0," ",""]
[null,55,null,"SELECCIONAR",null,null,"SELECCIONAR","SELECCIONAR",0,0,0,0,0,0,"SELECCIONAR","SELECCIONAR","SELECCIONAR","SELECCIONAR",0," ",""]
[null,56,null,"SELECCIONAR",null,null,"SELECCIONAR","SELECCIONAR",0,0,0,0,0,0,"SELECCIONAR","SELECCIONAR","SELECCIONAR","SELECCIONAR",0," ",""]
[null,57,null,"SELECCIONAR",null,null,"SELECCIONAR","SELECCIONAR",0,0,0,0,0,0,"SELECCIONAR","SELECCIONAR","SELECCIONAR","SELECCIONAR",0," ",""]
[null,58,null,"SELECCIONAR",null,null,"SELECCIONAR","SELECCIONAR",0,0,0,0,0,0,"SELECCIONAR","SELECCIONAR","SELECCIONAR","SELECCIONAR",0," ",""]
[null,59,null,"SELECCIONAR",null,null,"SELECCIONAR","SELECCIONAR",0,0,0,0,0,0,"SELECCIONAR","SELECCIONAR","SELECCIONAR","SELECCIONAR",0," ",""]
[null,60,null,"SELECCIONAR",null,null,"SELECCIONAR","SELECCIONAR",0,0,0,0,0,0,"SELECCIONAR","SELECCIONAR","SELECCIONAR","SELECCIONAR",0," ",""]
[null,61,null,"SELECCIONAR",null,null,"SELECCIONAR","SELECCIONAR",0,0,0,0,0,0,"SELECCIONAR","SELECCIONAR","SELECCIONAR","SELECCIONAR",0," ",""]
[null,62,null,"SELECCIONAR",null,null,"SELECCIONAR","SELECCIONAR",0,0,0,0,0,0,"SELECCIONAR","SELECCIONAR","SELECCIONAR","SELECCIONAR",0," ",""]
[null,63,null,"SELECCIONAR",null,null,"SELECCIONAR","SELECCIONAR",0,0,0,0,0,0,"SELECCIONAR","SELECCIONAR","SELECCIONAR","SELECCIONAR",0," ",""]
[null,64,null,"SELECCIONAR",null,null,"SELECCIONAR","SELECCIONAR",0,0,0,0,0,0,"SELECCIONAR","SELECCIONAR","SELECCIONAR","SELECCIONAR",0," ",""]
[null,65,null,"SELECCIONAR",null,null,"SELECCIONAR","SELECCIONAR",0,0,0,0,0,0,"SELECCIONAR","SELECCIONAR","SELECCIONAR","SELECCIONAR",0," ",""]
[null,66,null,"SELECCIONAR",null,null,"SELECCIONAR","SELECCIONAR",0,0,0,0,0,0,"SELECCIONAR","SELECCIONAR","SELECCIONAR","SELECCIONAR",0," ",""]
[null,67,null,"SELECCIONAR",null,null,"SELECCIONAR","SELECCIONAR",0,0,0,0,0,0,"SELECCIONAR","SELECCIONAR","SELECCIONAR","SELECCIONAR",0," ",""]
[null,68,null,"SELECCIONAR",null,null,"SELECCIONAR","SELECCIONAR",0,0,0,0,0,0,"SELECCIONAR","SELECCIONAR","SELECCIONAR","SELECCIONAR",0," ",""]
[null,69,null,"SELECCIONAR",null,null,"SELECCIONAR","SELECCIONAR",0,0,0,0,0,0,"SELECCIONAR","SELECCIONAR","SELECCIONAR","SELECCIONAR",0," ",""]
[null,70,null,"SELECCIONAR",null,null,"SELECCIONAR","SELECCIONAR",0,0,0,0,0,0,"SELECCIONAR","SELECCIONAR","SELECCIONAR","SELECCIONAR",0," ",""]
[null,71,null,"SELECCIONAR",null,null,"SELECCIONAR","SELECCIONAR",0,0,0,0,0,0,"SELECCIONAR","SELECCIONAR","SELECCIONAR","SELECCIONAR",0," ",""]
[null,72,null,"SELECCIONAR",null,null,"SELECCIONAR","SELECCIONAR",0,0,0,0,0,0,"SELECCIONAR","SELECCIONAR","SELECCIONAR","SELECCIONAR",0," ",""]
[null,{"$f":"B289+1","v":73},null,"SELECCIONAR",null,null,"SELECCIONAR","SELECCIONAR",0,0,0,0,0,0,"SELECCIONAR","SELECCIONAR","SELECCIONAR","SELECCIONAR",0," ",""]
[null,74,null,"SELECCIONAR",null,null,"SELECCIONAR","SELECCIONAR",0,0,0,0,0,0,"SELECCIONAR","SELECCIONAR","SELECCIONAR","SELECCIONAR",0," ",""]
[null,75,null,"SELECCIONAR",null,null,"SELECCIONAR","SELECCIONAR",0,0,0,0,0,0,"SELECCIONAR","SELECCIONAR","SELECCIONAR","SELECCIONAR",0," ",""]
[null,76,null,"SELECCIONAR",null,null,"SELECCIONAR","SELECCIONAR",0,0,0,0,0,0,"SELECCIONAR","SELECCIONAR","SELECCIONAR","SELECCIONAR",0," ",""]
[null,77,null,"SELECCIONAR",null,null,"SELECCIONAR","SELECCIONAR",0,0,0,0,0,0,"SELECCIONAR","SELECCIONAR","SELECCIONAR","SELECCIONAR",0," ",""]
[null,78,null,"SELECCIONAR",null,null,"SELECCIONAR","SELECCIONAR",0,0,0,0,0,{"$f":"L295*M295","v":0},"SELECCIONAR","SELECCIONAR","SELECCIONAR","SELECCIONAR",{"$f":"I295+J295+N295","v":0},{"$f":"IF(AND(I172=\"EXTRANJERO\",Q295=\"SI\"),1,IF(AND(E295>0,P295=\"Si\"),1,IF(OR(I295>0,N295>0),0,\" \")))","v":" "},{"$f":"IF(T295=1,\"DEDUCIBLE\",IF(T295=0,\"NO DEDUCIBLE\",\"\"))","v":""}]
[null,79,null,"SELECCIONAR",null,null,"SELECCIONAR","SELECCIONAR",0,0,0,0,0,0,"SELECCIONAR","SELECCIONAR","SELECCIONAR","SELECCIONAR",0," ",""]
[null,80,null,"SELECCIONAR",null,null,"SELECCIONAR","SELECCIONAR",0,0,0,0,0,0,"SELECCIONAR","SELECCIONAR","SELECCIONAR","SELECCIONAR",0," ",""]
[null,81,null,"SELECCIONAR",null,null,"SELECCIONAR","SELECCIONAR",0,0,0,0,0,0,"SELECCIONAR","SELECCIONAR","SELECCIONAR","SELECCIONAR",0," ",""]
[null,82,null,"SELECCIONAR",null,null,"SELECCIONAR","SELECCIONAR",0,0,0,0,0,0,"SELECCIONAR","SELECCIONAR","SELECCIONAR","SELECCIONAR",0," ",""]
[null,83,null,"SELECCIONAR",null,null,"SELECCIONAR","SELECCIONAR",0,0,0,0,0,0,"SELECCIONAR","SELECCIONAR","SELECCIONAR","SELECCIONAR",0," ",""]
[null,84,null,"SELECCIONAR",null,null,"SELECCIONAR","SELECCIONAR",0,0,0,0,0,0,"SELECCIONAR","SELECCIONAR","SELECCIONAR","SELECCIONAR",0," ",""]
[null,85,null,"SELECCIONAR",null,null,"SELECCIONAR","SELECCIONAR",0,0,0,0,0,0,"SELECCIONAR","SELECCIONAR","SELECCIONAR","SELECCIONAR",0," ",""]
[null,86,null,"SELECCIONAR",null,null,"SELECCIONAR","SELECCIONAR",0,0,0,0,0,0,"SELECCIONAR","SELECCIONAR","SELECCIONAR","SELECCIONAR",0," ",""]
[null,87,null,"SELECCIONAR",null,null,"SELECCIONAR","SELECCIONAR",0,0,0,0,0,0,"SELECCIONAR","SELECCIONAR","SELECCIONAR","SELECCIONAR",0," ",""]
[null,88,null,"SELECCIONAR",null,null,"SELECCIONAR","SELECCIONAR",0,0,0,0,0,0,"SELECCIONAR","SELECCIONAR","SELECCIONAR","SELECCIONAR",0," ",""]
[null,89,null,"SELECCIONAR",null,null,"SELECCIONAR","SELECCIONAR",0,0,0,0,0,0,"SELECCIONAR","SELECCIONAR","SELECCIONAR","SELECCIONAR",0," ",""]
[null,90,null,"SELECCIONAR",null,null,"SELECCIONAR","SELECCIONAR",0,0,0,0,0,0,"SELECCIONAR","SELECCIONAR","SELECCIONAR","SELECCIONAR",0," ",""]
[null,91,null,"SELECCIONAR",null,null,"SELECCIONAR","SELECCIONAR",0,0,0,0,0,0,"SELECCIONAR","SELECCIONAR","SELECCIONAR","SELECCIONAR",0," ",""]
[null,92,null,"SELECCIONAR",null,null,"SELECCIONAR","SELECCIONAR",0,0,0,0,0,0,"SELECCIONAR","SELECCIONAR","SELECCIONAR","SELECCIONAR",0," ",""]
[null,93,null,"SELECCIONAR",null,null,"SELECCIONAR","SELECCIONAR",0,0,0,0,0,0,"SELECCIONAR","SELECCIONAR","SELECCIONAR","SELECCIONAR",0," ",""]
[null,94,null,"SELECCIONAR",null,null,"SELECCIONAR","SELECCIONAR",0,0,0,0,0,0,"SELECCIONAR","SELECCIONAR","SELECCIONAR","SELECCIONAR",0," ",""]
[null,95,null,"SELECCIONAR",null,null,"SELECCIONAR","SELECCIONAR",0,0,0,0,0,0,"SELECCIONAR","SELECCIONAR","SELECCIONAR","SELECCIONAR",0," ",""]
[null,96,null,"SELECCIONAR",null,null,"SELECCIONAR","SELECCIONAR",0,0,0,0,0,0,"SELECCIONAR","SELECCIONAR","SELECCIONAR","SELECCIONAR",0," ",""]
[null,97,null,"SELECCIONAR",null,null,"SELECCIONAR","SELECCIONAR",0,0,0,0,0,0,"SELECCIONAR","SELECCIONAR","SELECCIONAR","SELECCIONAR",0," ",""]
[null,98,null,"SELECCIONAR",null,null,"SELECCIONAR","SELECCIONAR",0,0,0,0,0,0,"SELECCIONAR","SELECCIONAR","SELECCIONAR","SELECCIONAR",0," ",""]
[null,99,null,"SELECCIONAR",null,null,"SELECCIONAR","SELECCIONAR",0,0,0,0,0,0,"SELECCIONAR","SELECCIONAR","SELECCIONAR","SELECCIONAR",0," ",""]
[null,100,null,"SELECCIONAR",null,null,"SELECCIONAR","SELECCIONAR",0,0,0,0,0,0,"SELECCIONAR","SELECCIONAR","SELECCIONAR","SELECCIONAR",0," ",""]
[null,null,null,null,null,null,null,null,null,null,null,null,null,null,null,"Total de Gastos DEDUCIBLES",null,null,{"$f":"SUMIF(U218:U317,\"DEDUCIBLE\",S218:S317)","v":0},{"$f":"SUMIF(T218:T317,1,T218:T317)","v":0},{"$f":"COUNTIF(U218:U317,\"NO DEDUCIBLE\")","v":0}]
[null,null,null,null,null,null,null,null,null,null,null,null,null,null,null,"Total de Gastos NO DEDUCIBLES",null,null,{"$f":"SUMIF(U218:U317,\"NO DEDUCIBLE\",S218:S317)","v":0}]
[null,null,"ALIMENTOS",null,null,null,null,null,"GASTOS EN MONEDA NACIONAL",null,null,"GASTOS EN MONEDA EXTRANJERA",null,null,"COMPROBANTE"]
[null,null,"FECHA DEL GASTO*","CONCEPTO*","R.F.C *","RAZÓN SOCIAL DE QUIEN EMITE FACTURA*","FORMA DE PAGO*","MONEDA*","M. Nacional M.N) *","IVA *","Otros impuestos","M. extranjera","TC *","PESOS","Factura y/o PDF *","XML *","EDO CTA *","TICKET ","Total de Gastos"]
[null,1,null,"SELECCIONAR",null,null,"SELECCIONAR","SELECCIONAR",0,0,0,0,0,0,"SELECCIONAR","SELECCIONAR","SELECCIONAR","SELECCIONAR",0,{"$f":"IF(AND(I10=\"EXTRANJERO\",Q322=\"SI\"),1,IF(AND(E322>0,P322=\"Si\"),1,IF(OR(I322>0,N322>0),0,\" \")))","v":" "},{"$f":"IF(T322=1,\"DEDUCIBLE\",IF(T322=0,\"NO DEDUCIBLE\",\"\"))","v":""}]
[null,{"$f":"B322+1","v":2},null,"SELECCIONAR",null,null,"SELECCIONAR","SELECCIONAR",0,0,0,0,0,0,"SELECCIONAR","SELECCIONAR","SELECCIONAR","SELECCIONAR",0,{"$f":"IF(AND(I10=\"EXTRANJERO\",Q323=\"SI\"),1,IF(AND(E323>0,P323=\"Si\"),1,IF(OR(I323>0,N323>0),0,\" \")))","v":" "},""]
[null,{"$f":"B323+1","v":3},null,"SELECCIONAR",null,null,"SELECCIONAR","SELECCIONAR",0,0,0,0,0,0,"SELECCIONAR","SELECCIONAR","SELECCIONAR","SELECCIONAR",0,{"$f":"IF(AND(I10=\"EXTRANJERO\",Q324=\"SI\"),1,IF(AND(E324>0,P324=\"Si\"),1,IF(OR(I324>0,N324>0),0,\" \")))","v":" "},""]
[null,4,null,"SELECCIONAR",null,null,"SELECCIONAR","SELECCIONAR",0,0,0,0,0,0,"SELECCIONAR","SELECCIONAR","SELECCIONAR","SELECCIONAR",0,{"$f":"IF(AND(I10=\"EXTRANJERO\",Q325=\"SI\"),1,IF(AND(E325>0,P325=\"Si\"),1,IF(OR(I325>0,N325>0),0,\" \")))","v":" "},""]
[null,5,null,"SELECCIONAR",null,null,"SELECCIONAR","SELECCIONAR",0,0,0,0,0,0,"SELECCIONAR","SELECCIONAR","SELECCIONAR","SELECCIONAR",0,{"$f":"IF(AND(I10=\"EXTRANJERO\",Q326=\"SI\"),1,IF(AND(E326>0,P326=\"Si\"),1,IF(OR(I326>0,N326>0),0,\" \")))","v":" "},""]
[null,6,null,"SELECCIONAR",null,null,"SELECCIONAR","SELECCIONAR",0,0,0,0,0,0,"SELECCIONAR","SELECCIONAR","SELECCIONAR","SELECCIONAR",{"$f":"I327+J327+N327","v":0}," ",{"$f":"IF(T327=1,\"DEDUCIBLE\",IF(T327=0,\"NO DEDUCIBLE\",\"\"))","v":""}]
[null,7,null,"SELECCIONAR",null,null,"SELECCIONAR","SELECCIONAR",0,0,0,0,0,0,"SELECCIONAR","SELECCIONAR","SELECCIONAR","SELECCIONAR",0," ",""]
[null,8,null,"SELECCIONAR",null,null,"SELECCIONAR","SELECCIONAR",0,0,0,0,0,0,"SELECCIONAR","SELECCIONAR","SELECCIONAR","SELECCIONAR",0," ",""]
[null,9,null,"SELECCIONAR",null,null,"SELECCIONAR","SELECCIONAR",0,0,0,0,0,0,"SELECCIONAR","SELECCIONAR","SELECCIONAR","SELECCIONAR",0," ",""]
[null,10,null,"SELECCIONAR",null,null,"SELECCIONAR","SELECCIONAR",0,0,0,0,0,0,"SELECCIONAR","SELECCIONAR","SELECCIONAR","SELECCIONAR",0," ",""]
[null,11,null,"SELECCIONAR",null,null,"SELECCIONAR","SELECCIONAR",0,0,0,0,0,0,"SELECCIONAR","SELECCIONAR","SELECCIONAR","SELECCIONAR",0," ",""]
[null,12,null,"SELECCIONAR",null,null,"SELECCIONAR","SELECCIONAR",0,0,0,0,0,0,"SELECCIONAR","SELECCIONAR","SELECCIONAR","SELECCIONAR",0," ",""]
[null,13,null,"SELECCIONAR",null,null,"SELECCIONAR","SELECCIONAR",0,0,0,0,0,0,"SELECCIONAR","SELECCIONAR","SELECCIONAR","SELECCIONAR",0," ",""]
[null,14,null,"SELECCIONAR",null,null,"SELECCIONAR","SELECCIONAR",0,0,0,0,0,0,"SELECCIONAR","SELECCIONAR","SELECCIONAR","SELECCIONAR",0," ",""]
[null,15,null,"SELECCIONAR",null,null,"SELECCIONAR","SELECCIONAR",0,0,0,0,0,0,"SELECCIONAR","SELECCIONAR","SELECCIONAR","SELECCIONAR",0," ",""]
[null,16,null,"SELECCIONAR",null,null,"SELECCIONAR","SELECCIONAR",0,0,0,0,0,0,"SELECCIONAR","SELECCIONAR","SELECCIONAR","SELECCIONAR",0,{"$f":"IF(AND(I118=\"EXTRANJERO\",Q337=\"SI\"),1,IF(AND(E337>0,P337=\"Si\"),1,IF(OR(I337>0,N337>0),0,\" \")))","v":" "},""]
[null,17,null,"SELECCIONAR",null,null,"SELECCIONAR","SELECCIONAR",0,0,0,0,0,0,"SELECCIONAR","SELECCIONAR","SELECCIONAR","SELECCIONAR",0," ",""]
[null,18,null,"SELECCIONAR",null,null,"SELECCIONAR","SELECCIONAR",0,0,0,0,0,0,"SELECCIONAR","SELECCIONAR","SELECCIONAR","SELECCIONAR",0," ",""]
[null,19,null,"SELECCIONAR",null,null,"SELECCIONAR","SELECCIONAR",0,0,0,0,0,0,"SELECCIONAR","SELECCIONAR","SELECCIONAR","SELECCIONAR",0," ",""]
[null,20,null,"SELECCIONAR",null,null,"SELECCIONAR","SELECCIONAR",0,0,0,0,0,0,"SELECCIONAR","SELECCIONAR","SELECCIONAR","SELECCIONAR",0," ",""]
[null,21,null,"SELECCIONAR",null,null,"SELECCIONAR","SELECCIONAR",0,0,0,0,0,0,"SELECCIONAR","SELECCIONAR","SELECCIONAR","SELECCIONAR",0," ",""]
[null,22,null,"SELECCIONAR",null,null,"SELECCIONAR","SELECCIONAR",0,0,0,0,0,0,"SELECCIONAR","SELECCIONAR","SELECCIONAR","SELECCIONAR",0," ",""]
[null,23,null,"SELECCIONAR",null,null,"SELECCIONAR","SELECCIONAR",0,0,0,0,0,0,"SELECCIONAR","SELECCIONAR","SELECCIONAR","SELECCIONAR",0," ",""]
[null,24,null,"SELECCIONAR",null,null,"SELECCIONAR","SELECCIONAR",0,0,0,0,0,0,"SELECCIONAR","SELECCIONAR","SELECCIONAR","SELECCIONAR",0," ",""]
[null,25,null,"SELECCIONAR",null,null,"SELECCIONAR","SELECCIONAR",0,0,0,0,0,0,"SELECCIONAR","SELECCIONAR","SELECCIONAR","SELECCIONAR",0," ",""]
[null,26,null,"SELECCIONAR",null,null,"SELECCIONAR","SELECCIONAR",0,0,0,0,0,0,"SELECCIONAR","SELECCIONAR","SELECCIONAR","SELECCIONAR",0," ",""]
[null,27,null,"SELECCIONAR",null,null,"SELECCIONAR","SELECCIONAR",0,0,0,0,0,0,"SELECCIONAR","SELECCIONAR","SELECCIONAR","SELECCIONAR",0," ",""]
[null,28,null,"SELECCIONAR",null,null,"SELECCIONAR","SELECCIONAR",0,0,0,0,0,0,"SELECCIONAR","SELECCIONAR","SELECCIONAR","SELECCIONAR",0," ",""]
[null,29,null,"SELECCIONAR",null,null,"SELECCIONAR","SELECCIONAR",0,0,0,0,0,0,"SELECCIONAR","SELECCIONAR","SELECCIONAR","SELECCIONAR",0," ",""]
[null,30,null,"SELECCIONAR",null,null,"SELECCIONAR","SELECCIONAR",0,0,0,0,0,0,"SELECCIONAR","SELECCIONAR","SELECCIONAR","SELECCIONAR",0," ",""]
[null,31,null,"SELECCIONAR",null,null,"SELECCIONAR","SELECCIONAR",0,0,0,0,0,0,"SELECCIONAR","SELECCIONAR","SELECCIONAR","SELECCIONAR",0," ",""]
[null,32,null,"SELECCIONAR",null,null,"SELECCIONAR","SELECCIONAR",0,0,0,0,0,0,"SELECCIONAR","SELECCIONAR","SELECCIONAR","SELECCIONAR",0," ",""]
[null,33,null,"SELECCIONAR",null,null,"SELECCIONAR","SELECCIONAR",0,0,0,0,0,0,"SELECCIONAR","SELECCIONAR","SELECCIONAR","SELECCIONAR",0," ",""]
[null,34,null,"SELECCIONAR",null,null,"SELECCIONAR","SELECCIONAR",0,0,0,0,0,0,"SELECCIONAR","SELECCIONAR","SELECCIONAR","SELECCIONAR",0," ",""]
[null,35,null,"SELECCIONAR",null,null,"SELECCIONAR","SELECCIONAR",0,0,0,0,0,0,"SELECCIONAR","SELECCIONAR","SELECCIONAR","SELECCIONAR",0," ",""]
[null,36,null,"SELECCIONAR",null,null,"SELECCIONAR","SELECCIONAR",0,0,0,0,0,0,"SELECCIONAR","SELECCIONAR","SELECCIONAR","SELECCIONAR",0," ",""]
[null,37,null,"SELECCIONAR",null,null,"SELECCIONAR","SELECCIONAR",0,0,0,0,0,0,"SELECCIONAR","SELECCIONAR","SELECCIONAR","SELECCIONAR",0," ",""]
[null,38,null,"SELECCIONAR",null,null,"SELECCIONAR","SELECCIONAR",0,0,0,0,0,0,"SELECCIONAR","SELECCIONAR","SELECCIONAR","SELECCIONAR",0," ",""]
[null,39,null,"SELECCIONAR",null,null,"SELECCIONAR","SELECCIONAR",0,0,0,0,0,0,"SELECCIONAR","SELECCIONAR","SELECCIONAR","SELECCIONAR",0," ",""]
[null,40,null,"SELECCIONAR",null,null,"SELECCIONAR","SELECCIONAR",0,0,0,0,0,0,"SELECCIONAR","SELECCIONAR","SELECCIONAR","SELECCIONAR",0," ",""]
[null,41,null,"SELECCIONAR",null,null,"SELECCIONAR","SELECCIONAR",0,0,0,0,0,0,"SELECCIONAR","SELECCIONAR","SELECCIONAR","SELECCIONAR",0," ",""]
[null,42,null,"SELECCIONAR",null,null,"SELECCIONAR","SELECCIONAR",0,0,0,0,0,0,"SELECCIONAR","SELECCIONAR","SELECCIONAR","SELECCIONAR",0," ",""]
[null,43,null,"SELECCIONAR",null,null,"SELECCIONAR","SELECCIONAR",0,0,0,0,0,0,"SELECCIONAR","SELECCIONAR","SELECCIONAR","SELECCIONAR",0," ",""]
[null,44,null,"SELECCIONAR",null,null,"SELECCIONAR","SELECCIONAR",0,0,0,0,0,0,"SELECCIONAR","SELECCIONAR","SELECCIONAR","SELECCIONAR",0," ",""]
[null,45,null,"SELECCIONAR",null,null,"SELECCIONAR","SELECCIONAR",0,0,0,0,0,0,"SELECCIONAR","SELECCIONAR","SELECCIONAR","SELECCIONAR",0," ",""]
[null,46,null,"SELECCIONAR",null,null,"SELECCIONAR","SELECCIONAR",0,0,0,0,0,0,"SELECCIONAR","SELECCIONAR","SELECCIONAR","SELECCIONAR",0," ",""]
[null,47,null,"SELECCIONAR",null,null,"SELECCIONAR","SELECCIONAR",0,0,0,0,0,0,"SELECCIONAR","SELECCIONAR","SELECCIONAR","SELECCIONAR",0," ",""]
[null,48,null,"SELECCIONAR",null,null,"SELECCIONAR","SELECCIONAR",0,0,0,0,0,0,"SELECCIONAR","SELECCIONAR","SELECCIONAR","SELECCIONAR",0," ",""]
[null,49,null,"SELECCIONAR",null,null,"SELECCIONAR","SELECCIONAR",0,0,0,0,0,0,"SELECCIONAR","SELECCIONAR","SELECCIONAR","SELECCIONAR",0," ",""]
[null,50,null,"SELECCIONAR",null,null,"SELECCIONAR","SELECCIONAR",0,0,0,0,0,0,"SELECCIONAR","SELECCIONAR","SELECCIONAR","SELECCIONAR",0," ",""]
[null,51,null,"SELECCIONAR",null,null,"SELECCIONAR","SELECCIONAR",0,0,0,0,0,0,"SELECCIONAR","SELECCIONAR","SELECCIONAR","SELECCIONAR",0," ",""]
[null,52,null,"SELECCIONAR",null,null,"SELECCIONAR","SELECCIONAR",0,0,0,0,0,0,"SELECCIONAR","SELECCIONAR","SELECCIONAR","SELECCIONAR",0," ",""]
[null,53,null,"SELECCIONAR",null,null,"SELECCIONAR","SELECCIONAR",0,0,0,0,0,0,"SELECCIONAR","SELECCIONAR","SELECCIONAR","SELECCIONAR",0," ",""]
[null,54,null,"SELECCIONAR",null,null,"SELECCIONAR","SELECCIONAR",0,0,0,0,0,0,"SELECCIONAR","SELECCIONAR","SELECCIONAR","SELECCIONAR",0," ",""]
[null,55,null,"SELECCIONAR",null,null,"SELECCIONAR","SELECCIONAR",0,0,0,0,0,0,"SELECCIONAR","SELECCIONAR","SELECCIONAR","SELECCIONAR",0," ",""]
[null,56,null,"SELECCIONAR",null,null,"SELECCIONAR","SELECCIONAR",0,0,0,0,0,0,"SELECCIONAR","SELECCIONAR","SELECCIONAR","SELECCIONAR",0," ",""]
[null,57,null,"SELECCIONAR",null,null,"SELECCIONAR","SELECCIONAR",0,0,0,0,0,0,"SELECCIONAR","SELECCIONAR","SELECCIONAR","SELECCIONAR",0," ",""]
[null,58,null,"SELECCIONAR",null,null,"SELECCIONAR","SELECCIONAR",0,0,0,0,0,0,"SELECCIONAR","SELECCIONAR","SELECCIONAR","SELECCIONAR",0," ",""]
[null,59,null,"SELECCIONAR",null,null,"SELECCIONAR","SELECCIONAR",0,0,0,0,0,0,"SELECCIONAR","SELECCIONAR","SELECCIONAR","SELECCIONAR",0," ",""]
[null,60,null,"SELECCIONAR",null,null,"SELECCIONAR","SELECCIONAR",0,0,0,0,0,0,"SELECCIONAR","SELECCIONAR","SELECCIONAR","SELECCIONAR",0," ",""]
[null,61,null,"SELECCIONAR",null,null,"SELECCIONAR","SELECCIONAR",0,0,0,0,0,0,"SELECCIONAR","SELECCIONAR","SELECCIONAR","SELECCIONAR",0," ",""]
[null,62,null,"SELECCIONAR",null,null,"SELECCIONAR","SELECCIONAR",0,0,0,0,0,0,"SELECCIONAR","SELECCIONAR","SELECCIONAR","SELECCIONAR",0," ",""]
[null,63,null,"SELECCIONAR",null,null,"SELECCIONAR","SELECCIONAR",0,0,0,0,0,0,"SELECCIONAR","SELECCIONAR","SELECCIONAR","SELECCIONAR",0," ",""]
[null,64,null,"SELECCIONAR",null,null,"SELECCIONAR","SELECCIONAR",0,0,0,0,0,0,"SELECCIONAR","SELECCIONAR","SELECCIONAR","SELECCIONAR",0," ",""]
[null,65,null,"SELECCIONAR",null,null,"SELECCIONAR","SELECCIONAR",0,0,0,0,0,0,"SELECCIONAR","SELECCIONAR","SELECCIONAR","SELECCIONAR",0," ",""]
[null,66,null,"SELECCIONAR",null,null,"SELECCIONAR","SELECCIONAR",0,0,0,0,0,0,"SELECCIONAR","SELECCIONAR","SELECCIONAR","SELECCIONAR",0," ",""]
[null,{"$f":"B387+1","v":67},null,"SELECCIONAR",null,null,"SELECCIONAR","SELECCIONAR",0,0,0,0,0,0,"SELECCIONAR","SELECCIONAR","SELECCIONAR","SELECCIONAR",0," ",""]
[null,68,null,"SELECCIONAR",null,null,"SELECCIONAR","SELECCIONAR",0,0,0,0,0,0,"SELECCIONAR","SELECCIONAR","SELECCIONAR","SELECCIONAR",0," ",""]
[null,69,null,"SELECCIONAR",null,null,"SELECCIONAR","SELECCIONAR",0,0,0,0,0,0,"SELECCIONAR","SELECCIONAR","SELECCIONAR","SELECCIONAR",0," ",""]
[null,70,null,"SELECCIONAR",null,null,"SELECCIONAR","SELECCIONAR",0,0,0,0,0,0,"SELECCIONAR","SELECCIONAR","SELECCIONAR","SELECCIONAR",{"$f":"I391+J391+N391","v":0}," ",{"$f":"IF(T391=1,\"DEDUCIBLE\",IF(T391=0,\"NO DEDUCIBLE\",\"\"))","v":""}]
[null,71,null,"SELECCIONAR",null,null,"SELECCIONAR","SELECCIONAR",0,0,0,0,0,0,"SELECCIONAR","SELECCIONAR","SELECCIONAR","SELECCIONAR",0," ",""]
[null,72,null,"SELECCIONAR",null,null,"SELECCIONAR","SELECCIONAR",0,0,0,0,0,0,"SELECCIONAR","SELECCIONAR","SELECCIONAR","SELECCIONAR",0," ",""]
[null,73,null,"SELECCIONAR",null,null,"SELECCIONAR","SELECCIONAR",0,0,0,0,0,0,"SELECCIONAR","SELECCIONAR","SELECCIONAR","SELECCIONAR",0," ",""]
[null,74,null,"SELECCIONAR",null,null,"SELECCIONAR","SELECCIONAR",0,0,0,0,0,0,"SELECCIONAR","SELECCIONAR","SELECCIONAR","SELECCIONAR",0," ",""]
[null,75,null,"SELECCIONAR",null,null,"SELECCIONAR","SELECCIONAR",0,0,0,0,0,0,"SELECCIONAR","SELECCIONAR","SELECCIONAR","SELECCIONAR",0," ",""]
[null,76,null,"SELECCIONAR",null,null,"SELECCIONAR","SELECCIONAR",0,0,0,0,0,0,"SELECCIONAR","SELECCIONAR","SELECCIONAR","SELECCIONAR",0," ",""]
[null,77,null,"SELECCIONAR",null,null,"SELECCIONAR","SELECCIONAR",0,0,0,0,0,0,"SELECCIONAR","SELECCIONAR","SELECCIONAR","SELECCIONAR",0," ",""]
[null,78,null,"SELECCIONAR",null,null,"SELECCIONAR","SELECCIONAR",0,0,0,0,0,0,"SELECCIONAR","SELECCIONAR","SELECCIONAR","SELECCIONAR",0," ",""]
[null,79,null,"SELECCIONAR",null,null,"SELECCIONAR","SELECCIONAR",0,0,0,0,0,0,"SELECCIONAR","SELECCIONAR","SELECCIONAR","SELECCIONAR",0," ",""]
[null,80,null,"SELECCIONAR",null,null,"SELECCIONAR","SELECCIONAR",0,0,0,0,0,0,"SELECCIONAR","SELECCIONAR","SELECCIONAR","SELECCIONAR",0,{"$f":"IF(AND(I182=\"EXTRANJERO\",Q401=\"SI\"),1,IF(AND(E401>0,P401=\"Si\"),1,IF(OR(I401>0,N401>0),0,\" \")))","v":" "},""]
[null,81,null,"SELECCIONAR",null,null,"SELECCIONAR","SELECCIONAR",0,0,0,0,0,0,"SELECCIONAR","SELECCIONAR","SELECCIONAR","SELECCIONAR",0," ",""]
[null,82,null,"SELECCIONAR",null,null,"SELECCIONAR","SELECCIONAR",0,0,0,0,0,0,"SELECCIONAR","SELECCIONAR","SELECCIONAR","SELECCIONAR",0," ",""]
[null,83,null,"SELECCIONAR",null,null,"SELECCIONAR","SELECCIONAR",0,0,0,0,0,0,"SELECCIONAR","SELECCIONAR","SELECCIONAR","SELECCIONAR",0," ",""]
[null,84,null,"SELECCIONAR",null,null,"SELECCIONAR","SELECCIONAR",0,0,0,0,0,0,"SELECCIONAR","SELECCIONAR","SELECCIONAR","SELECCIONAR",0," ",""]
[null,85,null,"SELECCIONAR",null,null,"SELECCIONAR","SELECCIONAR",0,0,0,0,0,0,"SELECCIONAR","SELECCIONAR","SELECCIONAR","SELECCIONAR",0," ",""]
[null,86,null,"SELECCIONAR",null,null,"SELECCIONAR","SELECCIONAR",0,0,0,0,0,0,"SELECCIONAR","SELECCIONAR","SELECCIONAR","SELECCIONAR",0," ",""]
[null,87,null,"SELECCIONAR",null,null,"SELECCIONAR","SELECCIONAR",0,0,0,0,0,0,"SELECCIONAR","SELECCIONAR","SELECCIONAR","SELECCIONAR",0," ",""]
[null,88,null,"SELECCIONAR",null,null,"SELECCIONAR","SELECCIONAR",0,0,0,0,0,0,"SELECCIONAR","SELECCIONAR","SELECCIONAR","SELECCIONAR",0," ",""]
[null,89,null,"SELECCIONAR",null,null,"SELECCIONAR","SELECCIONAR",0,0,0,0,0,0,"SELECCIONAR","SELECCIONAR","SELECCIONAR","SELECCIONAR",0," ",""]
[null,90,null,"SELECCIONAR",null,null,"SELECCIONAR","SELECCIONAR",0,0,0,0,0,0,"SELECCIONAR","SELECCIONAR","SELECCIONAR","SELECCIONAR",0," ",""]
[null,91,null,"SELECCIONAR",null,null,"SELECCIONAR","SELECCIONAR",0,0,0,0,0,0,"SELECCIONAR","SELECCIONAR","SELECCIONAR","SELECCIONAR",0," ",""]
[null,92,null,"SELECCIONAR",null,null,"SELECCIONAR","SELECCIONAR",0,0,0,0,0,0,"SELECCIONAR","SELECCIONAR","SELECCIONAR","SELECCIONAR",0," ",""]
[null,93,null,"SELECCIONAR",null,null,"SELECCIONAR","SELECCIONAR",0,0,0,0,0,0,"SELECCIONAR","SELECCIONAR","SELECCIONAR","SELECCIONAR",0," ",""]
[null,94,null,"SELECCIONAR",null,null,"SELECCIONAR","SELECCIONAR",0,0,0,0,0,0,"SELECCIONAR","SELECCIONAR","SELECCIONAR","SELECCIONAR",0," ",""]
[null,95,null,"SELECCIONAR",null,null,"SELECCIONAR","SELECCIONAR",0,0,0,0,0,0,"SELECCIONAR","SELECCIONAR","SELECCIONAR","SELECCIONAR",0," ",""]
[null,96,null,"SELECCIONAR",null,null,"SELECCIONAR","SELECCIONAR",0,0,0,0,0,0,"SELECCIONAR","SELECCIONAR","SELECCIONAR","SELECCIONAR",0," ",""]
[null,97,null,"SELECCIONAR",null,null,"SELECCIONAR","SELECCIONAR",0,0,0,0,0,0,"SELECCIONAR","SELECCIONAR","SELECCIONAR","SELECCIONAR",0," ",""]
[null,98,null,"SELECCIONAR",null,null,"SELECCIONAR","SELECCIONAR",0,0,0,0,0,0,"SELECCIONAR","SELECCIONAR","SELECCIONAR","SELECCIONAR",0," ",""]
[null,99,null,"SELECCIONAR",null,null,"SELECCIONAR","SELECCIONAR",0,0,0,0,0,0,"SELECCIONAR","SELECCIONAR","SELECCIONAR","SELECCIONAR",0," ",""]
[null,100,null,"SELECCIONAR",null,null,"SELECCIONAR","SELECCIONAR",0,0,0,0,0,0,"SELECCIONAR","SELECCIONAR","SELECCIONAR","SELECCIONAR",0," ",""]
[null,null,null,null,null,null,null,null,null,null,null,null,null,null,null,"Total de Gastos DEDUCIBLES",null,null,{"$f":"SUMIF(U322:U421,\"DEDUCIBLE\",S322:S421)","v":0},{"$f":"SUMIF(T322:T421,1,T322:T421)","v":0},{"$f":"COUNTIF(U322:U421,\"NO DEDUCIBLE\")","v":0}]
[null,null,null,null,null,null,null,null,null,null,null,null,null,null,null,"Total de Gastos NO DEDUCIBLES",null,null,{"$f":"SUMIF(U322:U421,\"NO DEDUCIBLE\",S322:S421)","v":0}]
[null,null,null,null,null,null,null,null,null,null,null,null,null,null,"TOTAL PAGADO POR EMPLEADO:",null,null,null,{"$f":"SUM(S17:S213)+SUM(S218:S317)+SUM(S322:S421)","v":0}]
[null,null,"AUTORIZACIONES",null,null,null,null,null,null,null,null,null,null,null,null,"ANTICIPO:",null,null,{"$f":"Q10","v":0}]
[null,null,null,null,null,null,null,null,null,null,null,null,null,null,null,"DEPOSITO BANCARIO",null,null,{"$f":"I13","v":0}]
[null,null,null,null,null,null,null,null,null,null,null,null,"No. de XML y PDF´s",{"$f":"SUM(T422+T318+T214)","v":0},"Tikets NO deducibles",{"$f":"SUM(U422+U318+U214)","v":0},"TOTAL DOCUMENTOS",null,{"$f":"SUM(N427+P427)","v":0}]
[null,null,null,null,null,null,null,null,null,null,null,null,{"$f":"IF(P8=\"Reembolso de Viático\",\"DCH DEBE PAGAR\",IF(AND(I13=0,S425>S424),\"REALIZAR DEPOSITO A FAVOR DE DCH\",IF(AND(P8=\"Comprobación de Viático Anticipado\",S424>S425),\"DCH DEBE PAGAR\",IF(S428=0,\"COMPROBACION CERRADA\",\" \"))))","v":"COMPROBACION CERRADA"},null,null,null,null,null,{"$f":"IF(S424>S425,S424-S425,(S425-S424)-S426)","v":0}]
[null,null,null,null,null,null,null,null,null,null,null,null,null,null,"TOTAL DEDUCIBLES VS NO DEDUCIBLES"]
[null,null,null,null,null,null,null,null,null,null,null,null,null,null,null,"DEDUCIBLES",null,null,{"$f":"SUM(S422+S318+S214)","v":0}]
[null,null,null,null,null,null,null,null,null,null,null,null,null,null,null,"NO DEDUCIBLES",null,null,{"$f":"SUM(S423+S319+S215)","v":0}]

{"sheet":"AcumGastos","index":2,"n_rows":101,"n_cols":12,"rows_kept":101,"cut":false,"hidden":true,"merged":[[1,0,2,0],[1,1,2,1],[1,2,2,2],[1,10,2,10],[1,11,2,11]]}
["ACUMULADO DE GASTOS POR CONCEPTO",null,null,null,null,null,null,null,null,null,"ACUMULADO DE GASTOS POR FECHA"]
["Fecha","Concepto","Gasto",null,null,null,null,null,null,null,"Fecha","Gasto"]
[]
["OTROS","thdegj4444",1,null,null,null,null,null,null,null,"OTROS",1]
["SELECCIONAR","ewrthjkl44445653",1,null,null,null,null,null,null,null,"SELECCIONAR",1]
["SELECCIONAR","DDFFGHJKJ456432"," "]
[]
[]
[]
[]
[]
[]
[]
[]
[]
[]
[]
[]
[]
[]
[]
[]
[]
[]
[]
[]
[]
[]
[]
[]
[]
[]
[]
[]
[]
[]
[]
[]
[]
[]
[]
[]
[]
[]
[]
[]
[]
[]
[]
[]
[]
[]
[]
[]
[]
[]
[]
[]
[]
[]
[]
[]
[]
[]
[]
[]
[]
[]
[]
[]
[]
[]
[]
[]
[]
[]
[]
[]
[]
[]
[]
[]
[]
[]
[]
[]
[]
[]
[]
[]
[]
[]
[]
[]
[]
[]
[]
[]
[]
[]
[null,null,{"$f":"SUM(C4:C100)","v":2},null,null,null,null,null,null,null,null,{"$f":"SUM(L4:L100)","v":2}]

{"sheet":"Tablas","index":3,"n_rows":469,"n_cols":4,"rows_kept":469,"cut":false,"hidden":true,"merged":[]}
["Empresas","Clientes",null,"Tipo de Pago"]
["MXP INDUSTRIAL SA DE CV","141 WORLD WIDE SA CV",101,"Anticipo de Viatico"]
["ASESORIA STAFFING EMPRESARIAL SA DE CV","Absa Comunicaciones S.A. de CV.",772,"Reembolso"]
["ASESORIA EJECUTIVA INTEGRAL SA DE CV","ACUITY BRANDS LIGHTING SERVICIOS DE MÉXICO S.DE R.L. DE C.V.",734,"Reembolso de fondo fijo"]
["RGA SERVICIOS INDUSTRIALES SA DE CV","ADMINISTRADORA HABITAT SRL CV",103,"Solicitud de Fondo Fijo (Cuando se solicita por 1a Vez)"]
["PROMOTORA DE RH ADMINISTRATIVOS DE OCCIDENTE SA DE CV","Advanced Bionics México S.A. de C.V.",526]
["PERSONAL CORPORATIVO DEL BAJIO SA DE CV","AGGREKO SERVICES MEXICO SA DE CV",231]
["WORK FORCE MOBILE MEXICO SA DE CV","AIRFACTORY SA DE CV",381]
["WORLD JOB SOURCING SA DE CV","Alesso S.A. de C.V.",750]
[null,"ALSTOM MEXICANA, S.A. DE C.V.",232]
[null,"ALSTOM POWER MEXICO SA CV",104]
[null,"ALTAIR FILTER TECHNOLOGY INC",221]
[null,"AMERICAN BOOK STORE,  SA DE CV",461]
[null,"AMERICAN STANDARD B&K MEXICO S DE RL DE CV",349]
[null,"AMERICAN THIERRY AUTOMOTIVE, S.A.P.I. DE C.V.",384]
[null,"AMWAY DE  MEXICO S DE RL DE CV",488]
[null,"AMWAY DE MEXICO SERVICIOS S DE RL DE CV",513]
[null,"AMWAY LATIN AMERICA S DE RL DE CV",487]
[null,"ANGEL ANTONIO MUÑOZ AGUILAR",538]
[null,"ARAUCOMEX SA DE CV",388]
[null,"ARCHER TROY PUBLICIDAD SA DE CV",385]
[null,"AS MAQUILA MEXICO S DE RL DE CV",332]
[null,"ASESORIA DEPORTIVA ESPECIALIZADA SA DE CV",374]
[null,"ASESORIA EJECUTIVA INTEGRAL SA DE CV",211]
[null,"ASESORÍA STAFFING EMPRESARIAL, S.A. DE C.V.",493]
[null,"ASIGNET SA DE CV",534]
[null,"ASOC PROFES INVESTDRS UIA AC",326]
[null,"AUTOCASH SA DE CV",365]
[null,"AVERY  DENNISON SA DE CV",301]
[null,"AXA SALUD SA DE CV",331]
[null,"AXA SEGUROS SA DE CV",330]
[null,"Banco compartamos S.A, Institución de Banca Multiple",761]
[null,"BASCULAS Y AUTOMATIZACIONES SA DE CV",718]
[null,"BASHAM, RINGE Y CORREA S.C.|",722]
[null,"BAUSCH & LOMB MEXICO SA DE CV",438]
[null,"BECTON DICKINSON DE MEXICO SA DE CV",315]
[null,"BEECHWOOD DE MEXICO SA CV",107]
[null,"BEHR MEXICO SERVICIOS S DE RL DE CV",521]
[null,"BENTLY DE MEXICO SRL CV",109]
[null,"BEXAP MEXICO SA DE CV",338]
[null,"BHA GROUP DE MEXICO SA DE  CV",224]
[null,"BIMBO S.A. DE C.V.",703]
[null,"BIMBO S.A. DE C.V.",259]
[null,"BJRR CONSULTORES ASOCIADOS S.C.",236]
[null,"BODEGA LIVERPOOL SA DE CV",227]
[null,"BOLLHOFF COMERCIAL, S.A. DE C.V.",517]
[null,"BOLLHOFF SA DE CV",508]
[null,"BOMBARDIER AEROSPACE MEXICO SA DE CV",355]
[null,"BORGWARNER MORSE TEC MEXICO SA DE CV",217]
[null,"BRINGING THE WORLD TOGETHER AC",377]
[null,"BUFETE ORDAS Y ASOCIADOS, S.C.",346]
[null,"BXTI  SOLUCIONES EN TECNOLOGIA  DE INFORMACION SA DE CV",343]
[null,"C & W OPERACION INMOBILIARIA SA DE CV",244]
[null,"C&W OPERACION DE SERVICIOS SA DE CV",719]
[null,"CA CONSULTING S.A. DE C.V.",721]
[null,"CADENA COMERCIAL OXXO",727]
[null,"CADENA COMERCIAL OXXO S.A DE C.V.",273]
[null,"CANTAB TECNOLOGIA, S DE RL DE CV",473]
[null,"CARLOS CIRO ROMERO MIRANDA",757]
[null,"CEGEDIM  MEXICO SA DE CV",445]
[null,"CENTRO DE INGENIERIA AVANZADA ",723]
[null,"Centro de Ingeniería Avanzada en Turbomáquinas S de RL de CV",758]
[null,"CHAPA INDUSTRIAS  SA DE CV",364]
[null,"CHARBEL PEREZ CARAM",480]
[null,"CHEMETALL  MEXICANA S.A. DE C.V.",265]
[null,"CHRYSLER DE MEXICO SA DE CV",247]
[null,"CHRYSLER FINANCIAL SERVICIOS CORPORATIVOS S.A. DE C.V.",267]
[null,"CLEAN ART SA DE CV",114]
[null,"CLUB DEPORTIVO BERIMBAU  AC",369]
[null,"COEL SA DE CV",514]
[null,"COLCHONES WENDY SA DE CV",297]
[null,"COMBUSTIBLES ECOLÓGICOS MEXICANOS S.A. DE C.V",290]
[null,"COMERCIAL DE HERRAMIENTAS SA DE CV",370]
[null,"COMERCIALIZADORA  METAMORFOSIS SA DE CV",317]
[null,"COMERCIALIZADORA AZTECOM SA DE CV",764]
[null,"COMERCIALIZADORA DE VALOR AGREGADO, S.A. DE C.V.",417]
[null,"COMERCIALIZADORA INTCOMEX, S.A. DE C.V.",418]
[null,"COMPAÑÍA GENERAL DE VIVERES SA DE CV",435]
[null,"COMPAÑÍA INTERNACIONAL DE COMERCIO,  SAPI DE CV",547]
[null,"COMPONENTES ELECTRICOS DEL  NORTE S DE RL DE CV",283]
[null,"COMUNICACIONES UNIFICA SA DE CV",729]
[null,"COMVERSE NETWORK SIST SERV MEX SC",116]
[null,"CONNECT HEARING MEXICO SA DE CV",420]
[null,"CONREST INTERNACIONAL S.A. DE C.V.",251]
[null,"CONSEJO EJECUTIVO EMPRESAS GLOBALES AC",117]
[null,"CONSORCIO MOET, S. DE R.L. DE C.V.",540]
[null,"CONSTRUCTORA E INMOBILIARIA LOPCA SA DE CV",441]
[null,"CONSTRUCTORA E INMOBILIARIA PERINORTE SA DE CV",478]
[null,"CONSULTORIA T.I. S.A. DE C.V.",732]
[null,"CONSULTORIA Y DESARROLLOS SANTA IZABEL SA",475]
[null,"CONSULTORIO DE ORTODONCIA GONZALEZ MACIEL Y ASOCIADOS SC",468]
[null,"CONTINENTAL PAPELERA DE MEXICO, S.A. DE C.V.",737]
[null,"CONTRATO DE FIDEICOMISO IRREVOCABLE  DE ADMINISTRACION IDENT",256]
[null,"Converto Dexel, S.A. de C.V.",744]
[null,"CORPORACION ABINSA SA DE CV",500]
[null,"CORPORATIVO BIMBO, S.A DE C.V.",257]
[null,"CORPORATIVO MEXICANO DE INVERSIONISTAS SC",428]
[null,"CORPORATIVO PERALTA SA DE CV",415]
[null,"CORSIDIAN SA CV                                        ",119]
[null,"COZZINI MIDDLEBY DE MEXICO S DE RL DE CV",501]
[null,"CRITIKON DE MEXICO S DE RL DE CV",354]
[null,"CT INTERNACIONAL DEL NOROESTE SA DE CV",425]
[null,"Cummins Dexel S. de R.L. de C.V.",749]
[null,"CUSHMAN & WAKEFIELD SERVICIOS SA DE CV",702]
[null,"DACHSER DE MEXICO  SA DE CV",350]
[null,"DAGOS SA DE CV",308]
[null,"DAIMLER CHRYSLER DE MEXICO SA CV",121]
[null,"DCA DISTRIBUCIONES S.A DE C.V.",724]
[null,"DDI MEXIO INC",506]
[null,"DEHABI, S. A. DE C. V.",753]
[null,"DESING DIRECT SA CV                                    ",123]
[null,"DINAMICA Y SANEAMIENTO DE CAUDALES SA DE CV",376]
[null,"DIRECTA A CASA PUBLICIDAD, S.A. DE C.V.",542]
[null,"DISTRIBUIDORA DE ALIMENTOS TH SA DE CV",389]
[null,"DISTRIBUIDORA LIVERPOOL SA DE CV",254]
[null,"DONVAND LTD",485]
[null,"DRAFFT DISEÑADORES ASOCIADOS S. C.",471]
[null,"DRESSER DE MEXICO SA DE CV",512]
[null,"DRIDCO MEXICO SA DE CV",466]
[null,"DYNO  NOBEL MEXICO, S.A. DE C.V.",516]
[null,"ECOLOCHEM SERVICIOS SRL DE CV",127]
[null,"EDS DE MEXICO SA CV                                    ",126]
[null,"EFIM SAPI DE CV SOFOM ENR",396]
[null,"Electrica AB S.A. de C.V.",762]
[null,"EMI RECORDED MUSIC SA DE CV",414]
[null,"EMPLOYERS REASSURANCE CORPORATION",700]
[null,"EMPRESAS DOMOS S DE RL DE CV",213]
[null,"ENERTEC EXPORTS S DE RL DE CV",387]
[null,"ENERTEC MEXICO S DE RL DE CV",380]
[null,"ENRIQUE ALEJANDRO  ARCOS TORRES",463]
[null,"ENSAMBLE DE INTERIORES AUTOMOTRICES S DE RL DE CV",492]
[null,"ENTRADA GROUP  DE MEXICO S DE RL DE CV",404]
[null,"EQUIVER SA DE  CV",410]
[null,"ERICSSON SERVICIOS  ADMINISTRATIVOS  MEXICO SA DE CV",504]
[null,"Especialistas en Protección Patrimonial SC",754]
[null,"EXPEDITORS INTERNATIONAL DE MÉXICO SA. DE CV",293]
[null,"EZAQUIEL ALEJANDRO VALDEZ AGUIRRE",496]
[null,"FARMACIA BENAVIDES SA DE CV",220]
[null,"FARMACIAS ABC DE MEXICO SA DE CV",397]
[null,"FARMACIAS BENAVIDES SAB DE CV",295]
[null,"FERRETERÍA LA PASIEGA, SA DE CV",767]
[null,"FERSINSA GB, S.A. DE C.V.",546]
[null,"FESTO  PNEUMATIC  SA",771]
[null,"FIGUEROA GOMEZ FRANCISCO JAVIER",216]
[null,"FIMA  COMERCIALIZADORA  SA DE  CV",296]
[null,"Finsa Ingenieria y Construccion S.A. de C.V.",277]
[null,"FLETES MOCTEZUMA SA DE CV",706]
[null,"FLORES RODRIGUEZ JORGE JUAN SEBASTIAN",462]
[null,"FMC AGROQUIMICA DE MEXICO S DE RL DE CV",434]
[null,"FORD MOTOR COMPANY SA DE CV",334]
[null,"FORRAJES Y SEMILLAS EL PATO SA DE CV",431]
[null,"FRENOS Y MECANISMOS SA DE CV",373]
[null,"FUNDACION CHRYSLER  IAP",264]
[null,"FUNTRAB DE MEXICO SC",708]
[null,"GABRIEL HEREDIA MARCOS",340]
[null,"GALDINO ALEJANDRO SAMPERIO CARMONA",520]
[null,"GALERIA MEXICANA DE DISEÑO SA DE CV",451]
[null,"GALERIAS CAMPECHE SA DE CV",476]
[null,"GAMA SISTEMAS SA DE CV",416]
[null,"GAMESA S de RL de CV",282]
[null,"GARAN ASESORES, S. C.",255]
[null,"GARCIA BORBON CHRISTIAN",509]
[null,"GARCIA SOTO PEREZ CASTRO Y ASOCIADOS SC",450]
[null,"GARZA VELAZQUEZ  IVAN IZACHAR",491]
[null,"GASTRONOMIA AVANZADA PASTELERIAS SA DE CV",339]
[null,"GASTRONOMICA MOVIL SA CV",138]
[null,"GE BETZ MEXICO S. DE R.L. DE C.V.",139]
[null,"GE CAPITAL BANK SA  INST. BANCA MULTIPLE",134]
[null,"GE CAPITAL SERV. ADMINISTRATIVOS SA CV",135]
[null,"GE COMMERCIAL  MATERIALS  S DE RL DE CV",287]
[null,"GE DRIVES AMERICA SA CV",141]
[null,"GE ELECTRICAL DISTRIBUTION EQUIPMENT SA DE CV",289]
[null,"GE Equipo de Control y Distribucion S de RL de CV",258]
[null,"GE FRANKONA REINSURANCE AS OFICINA REPR",140]
[null,"GE INDUSTRIAL MOTORS MEXICO S  DE RL DE CV",281]
[null,"GE INTERNATIONAL MEXICO S RL CV",142]
[null,"GE INTERNATIONAL OPERATIONS COMPANY INC",152]
[null,"GE INTERNATIONAL SERVICIOS ADMINISTRATIVOS S.A. DE C.V.",274]
[null,"GE MANUFACTURING &SERVICES S DE RL DE CV",235]
[null,"GE MEDICAL SYSTEMS MONTERREY MEXICO SA DE CV",272]
[null,"GE MONEY BANK SA INSTITUCION DE BANCA MULTIPLE",229]
[null,"GE MONEY CREDITO HIPOTECARIO S.A DE C.V. SOCIEDAD FINANCIERA",241]
[null,"GE MONEY SERV ADMIN MEXICO S RL CV",145]
[null,"GE MONEY SERV ADMIN MONTERREY S RL CV",146]
[null,"GE MOTORS SERVICES S DE RL  DE CV",372]
[null,"GE OIL & GAS  PRESSURE CONTROL DE MEXICO  SA DE CV",470]
[null,"GE POLYMERSHAPES MEXICO S. DE R.L DE C.V",147]
[null,"GE POWER SYSTEM DE MEXICO",711]
[null,"GE REAL ESTATE MEXICO SRL CV",149]
[null,"GE SISTEMAS MEDICOS DE MEXICO SA CV",150]
[null,"GE TOSHIBA TURBINE COMPONENTS DE MEXICO S.R.L. DE CV",242]
[null,"GE WATER & PROCESS TECHNOLOGIES MEXICO  S DE RL DE CV",483]
[null,"GENTE COMPAÑÍA DE SOLUCIONES PROFESIONALES DE MEXICO SA DE C",319]
[null,"GENWORTH OPERACIONES S DE RL DE CV",467]
[null,"Genworth Seguros México, S.A. de C.V.",275]
[null,"GENWORTH SERVICIOS S DE RL DE CV",286]
[null,"GENWORTH SERVICIOS S DE RL DE CV",153]
[null,"GEODIS GLOBAL  SOLUTIONS MEXICO SA DE CV",305]
[null,"GEODIS WILSON MEXICO SA DE CV",302]
[null,"GETS CORPORATE SERVICES SA CV",155]
[null,"GETS LOCOMOTIVE SERVICES NORESTE S.A. DE C.V.",234]
[null,"GETS LOCOMOTIVE SERVICES SA DE CV",215]
[null,"GEWPT Mexico Servicios S de RL de CV",279]
[null,"GILLETTE DE MEXICO SA DE CV",212]
[null,"GIMCO SA CV",160]
[null,"GLOBAL CONSUMER LEASING SA CV                          ",161]
[null,"GLOBAL EXCHANGE SERVICES MEXICO SA CV                  ",214]
[null,"Go Bussines Strategies S.C.",522]
[null,"GONHERMEX SA DE CV",375]
[null,"GRUPO ALCIONE SA DE CV",452]
[null,"GRUPO EDITORIAL ESTILO MEXICO  SA DE CV",701]
[null,"GRUPO ELECTROMECANICO DE COAHUILA SRL CV",163]
[null,"GRUPO ESTRATEGICO PARA TELECOMUNICACIONES S.A. DE C.V.",730]
[null,"GRUPO GAMESA, S.DE R.L. DE C.V.",239]
[null,"GRUPO GASTRONOMICO ZUWA SA DE CV",394]
[null,"GRUPO HUMANO SOPHIA SA DE CV",402]
[null,"GRUPO INDUSTRIAL GYOCENTRO SA",459]
[null,"GRUPO LIDCA SA DE CV",360]
[null,"GRUPO OSHIMEX SA DE CV",366]
[null,"GRUPO RUBADELO SA DE CV",361]
[null,"GRUPO UNIDADES DE COMPUTO SA DE CV",422]
[null,"GTA AMERICANS LLC",433]
[null,"GUILLERMO ESCAMILLA NARVAEZ",752]
[null,"GUTERMAN  POLYGAL MEXICANA SA CV",164]
[null,"HARZ MEXICANOS, SA DE CV",472]
[null,"HDI SEGUROS SA DE CV",327]
[null,"HECTOR GODINEZ ESTRADA",745]
[null,"HERAEUS ELECTRO NITE MEXICANA SA DE CV",543]
[null,"HIVISA VIAJES SA DE CV",503]
[null,"HOBART DAYTON MEXICANA S. DE R.L. DE C.V.",306]
[null,"IDACOL FOOD COLORS SA DE CV",406]
[null,"IDEAL STANDARD GROUP S DE RL DE CV",329]
[null,"IETCI SA DE CV",280]
[null,"IFCO S.A. DE C.V.",539]
[null,"IMATION MÉXICO, S.A. DE C.V.",245]
[null,"IMC SOLUCIONES ESTRATEGICAS SA DE CV",356]
[null,"IMPACT MEDIA PUBLISHING MEXICO SA DE CV",409]
[null,"IMPCECO SA DE CV",477]
[null,"Impresores Profesionales S.A. de C.V.",269]
[null,"IMPULSORA DE MERCADOS DE MEXICO SA DE CV",705]
[null,"INDUSTRIA DE TUBERIAS AERONAUTICAS MEXICO SA DE CV",474]
[null,"INDUSTRIAL DE CUAUTITLAN SA DE CV",292]
[null,"INDUSTRIAL WENDY  SA CV",167]
[null,"INDUSTRIAS ELECTRONICAS  PACIFICO  SA DE CV",453]
[null,"INDUSTRIAS ELECTRONICAS  PACIFICO  SA DE CV",498]
[null,"INDUSTRIAS POLY REY, S.A. DE C.V.",249]
[null,"INMOBILIARIA OTOMI SA DE CV",392]
[null,"INNOVACION EN ALIMENTOS S.A. DE C.V.",261]
[null,"INSTALACIONES Y SERVICIOS SACA SA DE CV",379]
[null,"INSTITUTO DE ESPECIALIZACION PARA EJECUTIVOS SC",427]
[null,"INSTITUTO DE FORMACION LIVERPOOL AC",299]
[null,"INTERMODAL MEXICO SA CV",168]
[null,"INTRAMERICA  INDUSTRIAL PARK MANAGEMENT S. DE R.L. DE C.V.",225]
[null,"INTRAMERICA INDUSTRIAL PROPERT II S. DE R.L. DE C.V.",169]
[null,"INTRAMERICA MANAGEMENT SERVICES SRL CV",170]
[null,"INTRAMERICA PARK MAGNAMENT",712]
[null,"INVESTLATIN  DISTRIBUTRON SA CV                        ",171]
[null,"IPAR MOLD SA DE CV",429]
[null,"IQUBADORA DE TALENTO SC",484]
[null,"ISMAEL SALAZAR GARCIA",728]
[null,"IT SLN  S.A. DE C.V.",238]
[null,"ITP INGENIERIA Y FABRICACION SA DE CV",436]
[null,"IXE FONDOS",713]
[null,"JAPAN TOBACCO INTERNATIONAL SERVICES MEXICO  S DE RL DE CV",448]
[null,"JATO DYNAMICS SA DE CV",324]
[null,"JCIM MEXICO PROPERTIES S DE RL DE CV",408]
[null,"JOHNSON  CONTROLS AUTOMOTRIZ MEXICO S DE RL DE CV",353]
[null,"JOHNSON CONTROLS  MEXICO BE SA DE CV",310]
[null,"JOHNSON CONTROLS BATTERY GROUP INC",490]
[null,"JOHNSON CONTROLS BE MANUFACTURA MEXICO S DE RL DE CV",309]
[null,"JOHNSON CONTROLS BE SERVICIOS MEXICO S DE RL DE CV",311]
[null,"JOHNSON CONTROLS SA DE CV",368]
[null,"JOHNSON CONTROLS SERVICIOS  S DE RL DE CV",371]
[null,"JORGE CARRILLO GAYTAN",358]
[null,"JPC SUMINISTRO SA DE CV",413]
[null,"KENDALL DE MEXICO SA DE CV",391]
[null,"Kinetek de México S de RL de CV",756]
[null,"KONE INDUSTRIAL SERVICIOS, S.A. DE C.V.",537]
[null,"LABORATORIOS SOPHIA SA DE CV",401]
[null,"LAMPARAS GENERAL ELECTRIC S DE RL DE CV",219]
[null,"LAMPARAS GENERAL ELECTRIC S DE RL DE CV",710]
[null,"LANCEL",222]
[null,"LEAL GARZA MARIA CRISTINA",551]
[null,"LEONARDO HUERTA GONZALEZ",497]
[null,"LINEAGE POWER MATAMOROS  SA DE  CV",489]
[null,"LIVERPOOL MEXICO SA DE CV",726]
[null,"LIVERPOOL PROVINCIA SA DE CV",288]
[null,"LKQ TRUCKS & PARTS DE MEXICO S DE RL DE CV",344]
[null,"LONICS ACAPULCO SA DE CV",223]
[null,"LUIS FERNANDO CHIN NUÑEZ",390]
[null,"MABE SA DE CV",460]
[null,"MACFRAN S.A. DE CV.",751]
[null,"MACH 1 AERO SERVICIOS S DE RL DE CV",333]
[null,"MAGNA ELECTRONICS SYSTEMS DE MEXICO, SA DE CV",545]
[null,"MAHLE BEHR SERVICE, S DE R.L. DE C.V.",528]
[null,"MAIZORO S DE RL DE CV",322]
[null,"MANAGEMENT DEVELOPING CENTER SA DE CV",407]
[null,"MANPAC SA DE CV",233]
[null,"MANSOUR MINING TECHNOLOGIES INC",424]
[null,"MAQUINARIA DIESEL S.A. DE C.V.",746]
[null,"MARCO CESAR BALLESTEROS TOVAR",276]
[null,"MARIA  DE LOS ANGELES SALINAS GALINDO",321]
[null,"MARIA DE LOURDES QUIROZ NAVARRO",479]
[null,"MARIANA HERNANDEZ VELA SANCHEZ",432]
[null,"MARIO ALBERTO CANALES GONZALEZ",709]
[null,"Mary Kay Cosmetics de México, S.A. de C.V.",266]
[null,"MATRACA EXPERIENTIAL MARKETING SC",393]
[null,"MAXI UNIFORMES SA DE CV",411]
[null,"MEDICOS ESPECIALIZADOS INTERNACIONALES S DE RL DE CV",440]
[null,"MEGA ASESORES ADMINISTRATIVOS SA DE CV",312]
[null,"Merkle Korff Industries de México, S.A. de C.V.",743]
[null,"META 4 MEXICO SA CV",176]
[null,"METROPOLITANA COMPAÑÍA DE SEGUROS SA",443]
[null,"METSO MEXICO SA DE CV",495]
[null,"METSO SA DE CV",395]
[null,"MICROSOFT  MEXICO  S DE RL DE CV",363]
[null,"MOMENTIVE PERFORMANCE MATERIALS S de RL de CV",240]
[null,"MOMENTIVE SERVICES  S DE RL DE CV",444]
[null,"Monsanto Producción y Servicios, S. A. de C.V.",748]
[null,"MUEBLA SA DE CV",714]
[null,"MULTICERAS S.A. DE C.V.",738]
[null,"MXO TRADE SA DE CV",430]
[null,"MXP INDUSTRIAL SA CV                                   ",207]
[null,"N&F INDUSTRIAS S DE R.L M. I.",248]
[null,"NISSAN MEXICANA SA DE CV",494]
[null,"NO SABE FALLAR SA DE CV",178]
[null,"NYPRO MONTERREY INC  S DE RL DE CV",337]
[null,"OGILVY & MATHER SA CV                                  ",181]
[null,"OGILVY INTERACTIVE SA CV                               ",179]
[null,"OGILVY ONE SA CV                                       ",180]
[null,"OLABUENAGA CHEMISTRI SA CV",182]
[null,"OLYMPUS AUTOMOTIVE SERVICES S DE RL DE CV",541]
[null,"OPERADORA DAMILO SA DE CV",362]
[null,"OPERADORA DE ALIMENTOS  LAS MARGARITAS SA DE CV",469]
[null,"OPERADORA DE MAYORISTAS INTERNACIONALES SA DE CV",739]
[null,"OPERADORA GBM SA DE CV SOCIEDAD OPERADORA DE SOCIEDADES DE I",336]
[null,"OPERADORA RETO SA DE CV",328]
[null,"P & F MEXICANA SA DE CV",300]
[null,"PADEN SA DE CV",351]
[null,"PADILLA DE LA TORRE  LUIS MIGUEL",768]
[null,"PANORAMA COLOSAL SA DE CV",499]
[null,"PAXELL INTERNACIONAL SA DE CV",303]
[null,"PC HARDWARE, S.A. DE C.V.",419]
[null,"PENSKE SERVICIOS DE ADMINISTRACION SA DE CV",318]
[null,"Penske Sistemas de Logística SA de CV",278]
[null,"PEPSICO DE MEXICO S DE RL DE CV",186]
[null,"PEPSICO INTERNACIONAL  MEXICO S DE RL DE CV",298]
[null,"PHILIPS MEXICANA SA DE CV",342]
[null,"PII MEXICO S A DE C V",704]
[null,"PII MEXICO S.A. DE C.V.",228]
[null,"PLANTA SERVICIOS  Y CONSTRUCCION DE MEXICO  SA DE CV",291]
[null,"PLASTICOSCRT SA DE CV",550]
[null,"POINT OF LABOR SA DE CV",502]
[null,"POLÍMEROS NACIONALES, SA DE CV",735]
[null,"PORTILLA  RUY DIAZ Y AGUILAR  SC",763]
[null,"PRALLI 2020 SA DE CV",412]
[null,"PRIDE DIRECCION DE EMPRESAS SC",733]
[null,"PRINCIPAL FONDOS DE INVERSION SA  DE CV OPERADORA DE FONDOS",347]
[null,"PROCESAR SA DE CV",766]
[null,"PRODIGYMSN DE MÉXICO, S. DE R.L. DE C.V.",518]
[null,"PRODUCTIVIDAD CORPORATIVA INTEGRAL SC DE RL DE CV",736]
[null,"PRODUCTORA DE SUEÑOS S.A. DE C.V.",532]
[null,"PRODUCTOS DE CONTROL  S DE RL DE CV",464]
[null,"PRODUCTOS KRAFT S. DE R.L DE C.V.",742]
[null,"PROMOTORA DE RH ADMIN DE OCCIDENTE SA CV               ",209]
[null,"PROMOTORA DESARROLLO TECNOLOGICO SA DE CV",426]
[null,"PROSEL SRL CV",189]
[null,"PROTRANS DE MEXICO S DE RL DE CV",399]
[null,"PUBLIGRAPHICS SA DE CV",740]
[null,"RADIAL LLANTAS SA DE CV",400]
[null,"REACCIONES QUIMICAS SA DE CV",481]
[null,"RECLASIFICACION                                        ",1]
[null,"REGULES CONSTRUCCIONES SA DE CV",446]
[null,"REMARK INTERNATIONAL B.V.",250]
[null,"REMARK USA",230]
[null,"RENAULT CORPORATIVO SA DE CV",523]
[null,"RESEARCH SISTEMS CORPORATION                           ",190]
[null,"RETAIL DICANCO ADMINISTRACION DE PERSONAL SA DE CV",323]
[null,"RGA SERVICIOS INDUSTRIALES SA DE CV",208]
[null,"RICARDO GUTIERREZ MARTINEZ",507]
[null,"RICARDO VELASCO FRANCO",715]
[null,"RISK CONSULTING CORPORATION, S.C.",405]
[null,"ROBERTO ALEJANDRO ESPARZA VIEDMA",482]
[null,"Roció Barroso Aguiñaga",535]
[null,"ROCKWELL AUTOMATION MONTERREY SERVICES S DE R.L DE C.V.",515]
[null,"ROTAM MEXICO SA DE CV",505]
[null,"RQ DE MEXICO SA DE CV",345]
[null,"RVL SERVICE  S DE RL DE CV",442]
[null,"S.A.M. MISAKI",253]
[null,"SABIC INNOVATIVE PLASTICS SERVICIOS MEXICO S DE RL DE CV",341]
[null,"SABIC INNOVATIVE PLASTICS SERVICIOS SA DE CV",294]
[null,"SABIC POLYMERSHAPES MEXICO, S. DE RL. DE C.V.",252]
[null,"SAIZ CALDERON CONSULTORES SC",386]
[null,"SCHNEIDER ELECTRIC  MEXICO SA DE CV",457]
[null,"SCHNEIDER ELECTRIC ADMINISTRACION SA DE CV",455]
[null,"SCHNEIDER ELECTRIC IT MEXICO SA DE CV",456]
[null,"SCHNEIDER INDUSTRIAL  TLAXCALA SA DE CV",458]
[null,"SCHNEIDER R&D SA DE CV",454]
[null,"SCITUM SA DE CV",398]
[null,"SEMINARIUM ALTA DIRECCION SA DE CV",237]
[null,"SEPEFI CAPITAL MEXICO S DE RL DE CV",359]
[null,"SERV LOGISTICOS BENAVIDES SA CV",196]
[null,"SERV OPERACIONALES BENAVIDES SA CV",197]
[null,"SERV. INDUSTRIAL SA DE CV",741]
[null,"SERVICIOS ABC CAPITAL SA  DE CV",335]
[null,"SERVICIOS ADMINISTRATIVOS SANTA ROSA S DE RL DE CV",755]
[null,"SERVICIOS ADMINISTRATIVOS WALMART S DE RL DE CV",437]
[null,"SERVICIOS BBBMEX S DE RL DE CV",304]
[null,"SERVICIOS CORPORATIVOS KASA, SA DE CV",552]
[null,"SERVICIOS DE APOYO GDE SA DE CV",313]
[null,"SERVICIOS EFIM SA DE CV",403]
[null,"SERVICIOS EN  COMUNICACIÓN TELEFONICA S.A. DE C.V.",770]
[null,"SERVICIOS EN COMUNICACIÓN TELEFONICA SA DE CV",357]
[null,"SERVICIOS INTEGRALES KRAFT S DE RL DE CV",717]
[null,"SERVICIOS LIVERPOOL SA DE CV",210]
[null,"SERVICIOS MEDICOS ESPECIALIZADOS FAMILY CARE SA DE CV",447]
[null,"SERVICIOS UNIVERSAL MUSIC, S.A. DE C.V.",529]
[null,"SINTERMETAL SA DE CV",348]
[null,"SISTEMA  INTEGRAL DE ADMINISTRACIÓN, S.A. C.V.",271]
[null,"SISTEMAS Y FILTROS BHA ALTAIR S DE RL DE CV",533]
[null,"SISTEMUNDO NEOTECNOLOGICO SA DE CV",378]
[null,"SIZES AND COLORS DE MEXICO S.A. DE CV",769]
[null,"SMURFIT CARTON Y PAPEL DE MEXICO, S.A. DE C.V.",383]
[null,"Socialbakers a.s.",527]
[null,"SOURCING  SERVICIOS SRL CV",198]
[null,"STANHOME DE MEXICO SA DE CV",439]
[null,"STRATEGIC SOLUTIONS, S.A. DE C.V.",268]
[null,"SYS ZURICH SA DE CV",544]
[null,"SYSGOLD WIRELESS MEXICO S DE RL DE CV",716]
[null,"T1 MSN DE MEXICO S DE RL DE CV",511]
[null,"TAKEDA ADMINISTRACION MEXICO S.A. DE C.V.",525]
[null,"TAKEDA MEXICO SA DE CV",524]
[null,"TECH DATA MÉXICO, S. DE R.L. DE C.V.",421]
[null,"TECHNOTRIM DE MEXICO SA DE CV",352]
[null,"TECNOLOGIA ESPECIALIZADA ASOCIADA DE MEXICO SA DE CV",423]
[null,"TFSM SERVICIOS DE MEXICO S.A. de C.V.",285]
[null,"THE BOSTON CONSULTING GROUP OF MEXICO SA DE CV",707]
[null,"THE COLONIAL ROOF TILE SA DE CV",773]
[null,"TIP DE MEXICO S. DE R.L. DE C.V.",243]
[null,"TIP DE MEXICO SAPI DE CV",486]
[null,"TORRE REMBRANT AC",316]
[null,"TOWERS PERRIN DE MEXICO SA DE CV",320]
[null,"TRAINEES DE MEXICO SA DE CV                            ",226]
[null,"TRANSINT MEXICO S DE RL DE CV",382]
[null,"TRANSINT SERVICIOS ESPECIALIZADOS, S. DE R.L. DE C.V.",519]
[null,"TREVILLA Y ASOCIADOS SC",536]
[null,"TURBORREACTORES S.A. DE C.V.",284]
[null,"ULMA CIMBRAS Y ANDAMIOS DE MEXICO SA DE CV",449]
[null,"UNICARRIERS MEXICO, S.A. DE C.V.",548]
[null,"UNIDAD FORMAL DE EXCELENCIA S.A. DE C.V.",246]
[null,"UNIDAL MEXICO SA DE CV",765]
[null,"UNIMAT DE MEXICO SA DE CV",307]
[null,"UNIVERSAL PICTURES INTERNATIONAL  MEXICO S DE RL DE CV",263]
[null,"UNIVERSAL PICTURES MEXICO S DE RL DE CV",218]
[null,"UNIVERSIDAD IBEROAMERICANA AC",325]
[null,"VECTOR CASA DE BOLSA S.A. DE C.V.",760]
[null,"VEHIZERO S A P I DE CV",270]
[null,"VETCO  GRAY MEXICO SA DE CV",314]
[null,"VICENTE GILES RUVALCABA",465]
[null,"WALBRIDGE DE MEXICO S.A. DE CV.",262]
[null,"WATSON WYATT MÉXICO SA DE CV.",260]
[null,"WG PLUS DE MEXICO S DE RL DE CV",510]
[null,"WILLIAMS Y TANCREDIT COMUNICACIONES",725]
[null,"WORK FORCE MOBILE MEXICO SA DE CV",720]
[null,"WORK FORCE MOBILE MEXICO SA DE CV",530]
[null,"WORLD JOB SOURCING SA DE CV",531]
[null,"Yellow Bird Media S.A. DE C.V.",747]
[null,"YOBEL SCM SERVICIOS SA DE CV",367]
[null,"Zepeda-Guerra S.C.",759]